{"text_format":"1","workbook":"xlsx","n_sheets":11,"sheets":["メニュー","新生児","4週齢","6週齢","8週齢","28週齢","1歳","2歳","Sheet1","Sheet2","Sheet5"],"not_rendered":{"charts":0,"images":158,"macros":1,"external_links":0,"defined_names":0,"comments":0,"pivot_tables":0},"unopened":[],"bounds":{"document_bytes":16777216,"sheet_cells":100000,"rows_first":2000,"rows_last":500,"rows_between":2000,"halvings":0,"cell_chars":16384,"cell_head_chars":4096},"cells_cut":0,"cells_raw":0,"read":"whole","date_system":"1900"}

{"sheet":"メニュー","index":0,"n_rows":0,"n_cols":0,"rows_kept":0,"cut":false,"hidden":false,"merged":[[0,0,29,17]]}

{"sheet":"新生児","index":1,"n_rows":14,"n_cols":19,"rows_kept":14,"cut":false,"hidden":false,"merged":[[13,7,13,14],[1,0,1,1],[0,0,0,13],[12,7,12,13],[12,14,12,21]]}
["CAPD AnkerPoint　新生児"]
[null,null,null,4,3,2,1,0,null,null,null,null,null,"個別点数"]
["1.世話してくれる人とアイコンタクトができますか？","顔に目線が向かう",null,"　　一度もない","　　めったにない","　　ときどきある","　　よくある","　　いつも",false,false,false,false,false,{"$f":"IF(I3=TRUE,D2,IF(J3=TRUE,E2,IF(K3=TRUE,F2,IF(L3=TRUE,G2,IF(M3=TRUE,H2,\"未入力\")))))","v":"未入力"},null,null,null,null,{"$f":"COUNTIF(I3:M3,TRUE)","v":0}]
["2.目的のある行動をしますか？","原始反射に従って、頭を左右に動かす",null,"　　一度もない","　　めったにない","　　ときどきある","　　よくある","　　いつも",false,false,false,false,false,{"$f":"IF(I4=TRUE,D2,IF(J4=TRUE,E2,IF(K4=TRUE,F2,IF(L4=TRUE,G2,IF(M4=TRUE,H2,\"未入力\")))))","v":"未入力"},null,null,null,null,0]
["3.周囲の状況に関心がありますか？","穏やかに覚醒している",null,"　　一度もない","　　めったにない","　　ときどきある","　　よくある","　　いつも",false,false,false,false,false,{"$f":"IF(I5=TRUE,D2,IF(J5=TRUE,E2,IF(K5=TRUE,F2,IF(L5=TRUE,G2,IF(M5=TRUE,H2,\"未入力\")))))","v":"未入力"},null,null,null,null,0]
["4.要求と欲求を伝えていますか？","お腹がすいた時や不快な時に泣く",null,"　　一度もない","　　めったにない","　　ときどきある","　　よくある","　　いつも",false,false,false,false,false,{"$f":"IF(I6=TRUE,D2,IF(J6=TRUE,E2,IF(K6=TRUE,F2,IF(L6=TRUE,G2,IF(M6=TRUE,H2,\"未入力\")))))","v":"未入力"},null,null,null,null,0]
[null,null,null,0,1,2,3,4,null,null,null,null,null,null,null,null,null,null,0]
["5. 落ち着きがないですか？","はっきり覚醒した状態が継続しない",null,"　　一度もない","　　めったにない","　　ときどきある","　　よくある","　　いつも",false,false,false,false,false,{"$f":"IF(I8=TRUE,D7,IF(J8=TRUE,E7,IF(K8=TRUE,F7,IF(L8=TRUE,G7,IF(M8=TRUE,H7,\"未入力\")))))","v":"未入力"},null,null,null,null,0]
["6. なぐさめられないですか？","ゆする、歌う、授乳する、心地よくすることでなだめることができない",null,"　　一度もない","　　めったにない","　　ときどきある","　　よくある","　　いつも",false,false,false,false,false,{"$f":"IF(I9=TRUE,D7,IF(J9=TRUE,E7,IF(K9=TRUE,F7,IF(L9=TRUE,G7,IF(M9=TRUE,H7,\"未入力\")))))","v":"未入力"},null,null,null,null,0]
["7. 活動性が低下していませんか？起きている間、動きが少なくなっていませんか？","手足を曲げることはほとんどなく、原始反射の他は力が抜けている状態である。(子供はほとんどの時間を心地よく、寝ている",null,"　　一度もない","　　めったにない","　　ときどきある","　　よくある","　　いつも",false,false,false,false,false,{"$f":"IF(I10=TRUE,D7,IF(J10=TRUE,E7,IF(K10=TRUE,F7,IF(L10=TRUE,G7,IF(M10=TRUE,H7,\"未入力\")))))","v":"未入力"},null,null,null,null,0]
["8. 関わりに反応するのに時間がかかりますか？","音をたてない。予測さ れる反射行動がない。 （把握反射、吸啜反 射、モロー反射）",null,"　　一度もない","　　めったにない","　　ときどきある","　　よくある","　　いつも",false,false,false,false,false,{"$f":"IF(I11=TRUE,D7,IF(J11=TRUE,E7,IF(K11=TRUE,F7,IF(L11=TRUE,G7,IF(M11=TRUE,H7,\"未入力\")))))","v":"未入力"},null,null,null,null,0]
[]
[null,null,null,null,null,null,"合計点数",{"$f":"SUM(N3:N12)","v":0},null,null,null,null,null,null,{"$f":"IF(U2=\"未入力\",\"未入力項目があります\",IF(U3=\"未入力\",\"未入力項目があります\",IF(U4=\"未入力\",\"未入力項目があります\",IF(U5=\"未入力\",\"未入力項目があります\",IF(U7=\"未入力\",\"未入力項目があります\",IF(U8=\"未入力\",\"未入力項目があります\",IF(U9=\"未入力\",\"未入力項目があります\",IF(U10=\"未入力\",\"未入力項目があります\",\" \"))))))))","v":" "}]
[null,null,null,null,null,null,null,{"$f":"IF(N3=\"未入力\",\"未入力項目があります\",IF(N4=\"未入力\",\"未入力項目があります\",IF(N5=\"未入力\",\"未入力項目があります\",IF(N6=\"未入力\",\"未入力項目があります\",IF(N8=\"未入力\",\"未入力項目があります\",IF(N9=\"未入力\",\"未入力項目があります\",IF(N10=\"未入力\",\"未入力項目があります\",IF(N11=\"未入力\",\"未入力項目があります\",\" \"))))))))","v":"未入力項目があります"}]

{"sheet":"4週齢","index":2,"n_rows":14,"n_cols":19,"rows_kept":14,"cut":false,"hidden":false,"merged":[[0,0,0,13],[1,0,1,1],[12,7,12,13],[12,14,12,21],[13,7,13,14]]}
["CAPD AnkerPoint 　4週齢"]
[null,null,null,4,3,2,1,0,null,null,null,null,null,"個別点数"]
["1.世話してくれる人とアイコンタクトができますか？","視線を少しの間保持する。90度目で追う",null,"　　一度もない","　　めったにない","　　ときどきある","　　よくある","　　いつも",false,false,false,false,false,{"$f":"IF(I3=TRUE,D2,IF(J3=TRUE,E2,IF(K3=TRUE,F2,IF(L3=TRUE,G2,IF(M3=TRUE,H2,\"未入力\")))))","v":"未入力"},null,null,null,null,{"$f":"COUNTIF(I3:M3,TRUE)","v":0}]
["2.目的のある行動をしますか？","手を差し出す（ある程度協調性のない行動を伴ってもよい）",null,"　　一度もない","　　めったにない","　　ときどきある","　　よくある","　　いつも",false,false,false,false,false,{"$f":"IF(I4=TRUE,D2,IF(J4=TRUE,E2,IF(K4=TRUE,F2,IF(L4=TRUE,G2,IF(M4=TRUE,H2,\"未入力\")))))","v":"未入力"},null,null,null,null,0]
["3.周囲の状況に関心がありますか？","はっきりと覚醒している。世話してくれる人の声の方を向く",null,"　　一度もない","　　めったにない","　　ときどきある","　　よくある","　　いつも",false,false,false,false,false,{"$f":"IF(I5=TRUE,D2,IF(J5=TRUE,E2,IF(K5=TRUE,F2,IF(L5=TRUE,G2,IF(M5=TRUE,H2,\"未入力\")))))","v":"未入力"},null,null,null,null,0]
["4.要求と欲求を伝えていますか？","お腹がすいた時や不快な時に泣く",null,"　　一度もない","　　めったにない","　　ときどきある","　　よくある","　　いつも",false,false,false,false,false,{"$f":"IF(I6=TRUE,D2,IF(J6=TRUE,E2,IF(K6=TRUE,F2,IF(L6=TRUE,G2,IF(M6=TRUE,H2,\"未入力\")))))","v":"未入力"},null,null,null,null,0]
[null,null,null,0,1,2,3,4,null,null,null,null,null,null,null,null,null,null,0]
["5. 落ち着きがないですか？","おだやかな状態が継続しない",null,"　　一度もない","　　めったにない","　　ときどきある","　　よくある","　　いつも",false,false,false,false,false,{"$f":"IF(I8=TRUE,D7,IF(J8=TRUE,E7,IF(K8=TRUE,F7,IF(L8=TRUE,G7,IF(M8=TRUE,H7,\"未入力\")))))","v":"未入力"},null,null,null,null,0]
["6. なぐさめられないですか？","ゆする、歌う、授乳する、心地よくすることでなだめることができない",null,"　　一度もない","　　めったにない","　　ときどきある","　　よくある","　　いつも",false,false,false,false,false,{"$f":"IF(I9=TRUE,D7,IF(J9=TRUE,E7,IF(K9=TRUE,F7,IF(L9=TRUE,G7,IF(M9=TRUE,H7,\"未入力\")))))","v":"未入力"},null,null,null,null,0]
["7. 活動性が低下していませんか？起きている間、動きが少なくなっていませんか？","手を差し出す、蹴る、握ることをほとんどしない（ある程度の協調性のない行動を伴ってもよい）",null,"　　一度もない","　　めったにない","　　ときどきある","　　よくある","　　いつも",false,false,false,false,false,{"$f":"IF(I10=TRUE,D7,IF(J10=TRUE,E7,IF(K10=TRUE,F7,IF(L10=TRUE,G7,IF(M10=TRUE,H7,\"未入力\")))))","v":"未入力"},null,null,null,null,0]
["8. 関わりに反応するのに時間がかかりますか？","音をたてない。予測さ れる反射行動がない。 （把握反射、吸啜反 射、モロー反射）",null,"　　一度もない","　　めったにない","　　ときどきある","　　よくある","　　いつも",false,false,false,false,false,{"$f":"IF(I11=TRUE,D7,IF(J11=TRUE,E7,IF(K11=TRUE,F7,IF(L11=TRUE,G7,IF(M11=TRUE,H7,\"未入力\")))))","v":"未入力"},null,null,null,null,0]
[]
[null,null,null,null,null,null,"合計点数",{"$f":"SUM(N3:N12)","v":0},null,null,null,null,null,null,{"$f":"IF(U2=\"未入力\",\"未入力項目があります\",IF(U3=\"未入力\",\"未入力項目があります\",IF(U4=\"未入力\",\"未入力項目があります\",IF(U5=\"未入力\",\"未入力項目があります\",IF(U7=\"未入力\",\"未入力項目があります\",IF(U8=\"未入力\",\"未入力項目があります\",IF(U9=\"未入力\",\"未入力項目があります\",IF(U10=\"未入力\",\"未入力項目があります\",\" \"))))))))","v":" "}]
[null,null,null,null,null,null,null,{"$f":"IF(N3=\"未入力\",\"未入力項目があります\",IF(N4=\"未入力\",\"未入力項目があります\",IF(N5=\"未入力\",\"未入力項目があります\",IF(N6=\"未入力\",\"未入力項目があります\",IF(N8=\"未入力\",\"未入力項目があります\",IF(N9=\"未入力\",\"未入力項目があります\",IF(N10=\"未入力\",\"未入力項目があります\",IF(N11=\"未入力\",\"未入力項目があります\",\" \"))))))))","v":"未入力項目があります"}]

{"sheet":"6週齢","index":3,"n_rows":14,"n_cols":19,"rows_kept":14,"cut":false,"hidden":false,"merged":[[0,0,0,13],[1,0,1,1],[12,7,12,13],[12,14,12,21],[13,7,13,14]]}
["CAPD AnkerPoint　６週齢"]
[null,null,null,4,3,2,1,0,null,null,null,null,null,"個別点数"]
["1.世話してくれる人とアイコンタクトができますか？","視線を保つ",null,"　　一度もない","　　めったにない","　　ときどきある","　　よくある","　　いつも",false,false,false,false,false,{"$f":"IF(I3=TRUE,D2,IF(J3=TRUE,E2,IF(K3=TRUE,F2,IF(L3=TRUE,G2,IF(M3=TRUE,H2,\"未入力\")))))","v":"未入力"},null,null,null,null,{"$f":"COUNTIF(I3:M3,TRUE)","v":0}]
["2.目的のある行動をしますか？","手を差し出す",null,"　　一度もない","　　めったにない","　　ときどきある","　　よくある","　　いつも",false,false,false,false,false,{"$f":"IF(I4=TRUE,D2,IF(J4=TRUE,E2,IF(K4=TRUE,F2,IF(L4=TRUE,G2,IF(M4=TRUE,H2,\"未入力\")))))","v":"未入力"},null,null,null,null,0]
["3.周囲の状況に関心がありますか？","はっきりと覚醒している時間が増える。世話してくれる人の声の方を向く",null,"　　一度もない","　　めったにない","　　ときどきある","　　よくある","　　いつも",false,false,false,false,false,{"$f":"IF(I5=TRUE,D2,IF(J5=TRUE,E2,IF(K5=TRUE,F2,IF(L5=TRUE,G2,IF(M5=TRUE,H2,\"未入力\")))))","v":"未入力"},null,null,null,null,0]
["4.要求と欲求を伝えていますか？","お腹がすいた時や不快な時に泣く",null,"　　一度もない","　　めったにない","　　ときどきある","　　よくある","　　いつも",false,false,false,false,false,{"$f":"IF(I6=TRUE,D2,IF(J6=TRUE,E2,IF(K6=TRUE,F2,IF(L6=TRUE,G2,IF(M6=TRUE,H2,\"未入力\")))))","v":"未入力"},null,null,null,null,0]
[null,null,null,0,1,2,3,4,null,null,null,null,null,null,null,null,null,null,0]
["5. 落ち着きがないですか？","おだやかな状態が継続しない",null,"　　一度もない","　　めったにない","　　ときどきある","　　よくある","　　いつも",false,false,false,false,false,{"$f":"IF(I8=TRUE,D7,IF(J8=TRUE,E7,IF(K8=TRUE,F7,IF(L8=TRUE,G7,IF(M8=TRUE,H7,\"未入力\")))))","v":"未入力"},null,null,null,null,0]
["6. なぐさめられないですか？","ゆする、歌う、授乳する、心地よくすることでなだめることができない",null,"　　一度もない","　　めったにない","　　ときどきある","　　よくある","　　いつも",false,false,false,false,false,{"$f":"IF(I9=TRUE,D7,IF(J9=TRUE,E7,IF(K9=TRUE,F7,IF(L9=TRUE,G7,IF(M9=TRUE,H7,\"未入力\")))))","v":"未入力"},null,null,null,null,0]
["7. 活動性が低下していませんか？起きている間、動きが少なくなっていませんか？","手を差し出す、蹴る、握ることをほとんどしない（より協調性のある行動がみられるかもしれない）",null,"　　一度もない","　　めったにない","　　ときどきある","　　よくある","　　いつも",false,false,false,false,false,{"$f":"IF(I10=TRUE,D7,IF(J10=TRUE,E7,IF(K10=TRUE,F7,IF(L10=TRUE,G7,IF(M10=TRUE,H7,\"未入力\")))))","v":"未入力"},null,null,null,null,0]
["8. 関わりに反応するのに時間がかかりますか？","不快な刺激に蹴ったり泣いたりしない",null,"　　一度もない","　　めったにない","　　ときどきある","　　よくある","　　いつも",false,false,false,false,false,{"$f":"IF(I11=TRUE,D7,IF(J11=TRUE,E7,IF(K11=TRUE,F7,IF(L11=TRUE,G7,IF(M11=TRUE,H7,\"未入力\")))))","v":"未入力"},null,null,null,null,0]
[]
[null,null,null,null,null,null,"合計点数",{"$f":"SUM(N3:N12)","v":0},null,null,null,null,null,null,{"$f":"IF(U2=\"未入力\",\"未入力項目があります\",IF(U3=\"未入力\",\"未入力項目があります\",IF(U4=\"未入力\",\"未入力項目があります\",IF(U5=\"未入力\",\"未入力項目があります\",IF(U7=\"未入力\",\"未入力項目があります\",IF(U8=\"未入力\",\"未入力項目があります\",IF(U9=\"未入力\",\"未入力項目があります\",IF(U10=\"未入力\",\"未入力項目があります\",\" \"))))))))","v":" "}]
[null,null,null,null,null,null,null,{"$f":"IF(N3=\"未入力\",\"未入力項目があります\",IF(N4=\"未入力\",\"未入力項目があります\",IF(N5=\"未入力\",\"未入力項目があります\",IF(N6=\"未入力\",\"未入力項目があります\",IF(N8=\"未入力\",\"未入力項目があります\",IF(N9=\"未入力\",\"未入力項目があります\",IF(N10=\"未入力\",\"未入力項目があります\",IF(N11=\"未入力\",\"未入力項目があります\",\" \"))))))))","v":"未入力項目があります"}]

{"sheet":"8週齢","index":4,"n_rows":14,"n_cols":19,"rows_kept":14,"cut":false,"hidden":false,"merged":[[0,0,0,13],[1,0,1,1],[12,7,12,13],[12,14,12,21],[13,7,13,14]]}
["CAPD AnkerPoint　８週齢"]
[null,null,null,4,3,2,1,0,null,null,null,null,null,"個別点数"]
["1.世話してくれる人とアイコンタクトができますか？","自分の正中線を横切って動く、世話をしてくれる人やものを目で追う。試験者が手で持ったものを注目する",null,"　　一度もない","　　めったにない","　　ときどきある","　　よくある","　　いつも",false,false,false,false,false,{"$f":"IF(I3=TRUE,D2,IF(J3=TRUE,E2,IF(K3=TRUE,F2,IF(L3=TRUE,G2,IF(M3=TRUE,H2,\"未入力\")))))","v":"未入力"},null,null,null,null,{"$f":"COUNTIF(I3:M3,TRUE)","v":0}]
["2.目的のある行動をしますか？","差し出されたものを左右対称的な動きで逆らわずにつかもうとする",null,"　　一度もない","　　めったにない","　　ときどきある","　　よくある","　　いつも",false,false,false,false,false,{"$f":"IF(I4=TRUE,D2,IF(J4=TRUE,E2,IF(K4=TRUE,F2,IF(L4=TRUE,G2,IF(M4=TRUE,H2,\"未入力\")))))","v":"未入力"},null,null,null,null,0]
["3.周囲の状況に関心がありますか？","頭を縦に振ったりベルの音に眉をひそめたり、優しく話しかけると表情が明るくなったり、笑顔になる",null,"　　一度もない","　　めったにない","　　ときどきある","　　よくある","　　いつも",false,false,false,false,false,{"$f":"IF(I5=TRUE,D2,IF(J5=TRUE,E2,IF(K5=TRUE,F2,IF(L5=TRUE,G2,IF(M5=TRUE,H2,\"未入力\")))))","v":"未入力"},null,null,null,null,0]
["4.要求と欲求を伝えていますか？","お腹がすいた時や不快な時に泣く",null,"　　一度もない","　　めったにない","　　ときどきある","　　よくある","　　いつも",false,false,false,false,false,{"$f":"IF(I6=TRUE,D2,IF(J6=TRUE,E2,IF(K6=TRUE,F2,IF(L6=TRUE,G2,IF(M6=TRUE,H2,\"未入力\")))))","v":"未入力"},null,null,null,null,0]
[null,null,null,0,1,2,3,4,null,null,null,null,null,null,null,null,null,null,0]
["5. 落ち着きがないですか？","おだやかな状態が継続しない",null,"　　一度もない","　　めったにない","　　ときどきある","　　よくある","　　いつも",false,false,false,false,false,{"$f":"IF(I8=TRUE,D7,IF(J8=TRUE,E7,IF(K8=TRUE,F7,IF(L8=TRUE,G7,IF(M8=TRUE,H7,\"未入力\")))))","v":"未入力"},null,null,null,null,0]
["6. なぐさめられないですか？","ゆする、歌う、授乳する、心地よくすることでなだめることができない",null,"　　一度もない","　　めったにない","　　ときどきある","　　よくある","　　いつも",false,false,false,false,false,{"$f":"IF(I9=TRUE,D7,IF(J9=TRUE,E7,IF(K9=TRUE,F7,IF(L9=TRUE,G7,IF(M9=TRUE,H7,\"未入力\")))))","v":"未入力"},null,null,null,null,0]
["7. 活動性が低下していませんか？起きている間、動きが少なくなっていませんか？","目的を持って握る、頭や腕を動かすことがほとんどない。例えば、不快なものを押しのけるなどしない",null,"　　一度もない","　　めったにない","　　ときどきある","　　よくある","　　いつも",false,false,false,false,false,{"$f":"IF(I10=TRUE,D7,IF(J10=TRUE,E7,IF(K10=TRUE,F7,IF(L10=TRUE,G7,IF(M10=TRUE,H7,\"未入力\")))))","v":"未入力"},null,null,null,null,0]
["8. 関わりに反応するのに時間がかかりますか？","関わりへの反応に、喃語を話す、笑う、見つめることをしない",null,"　　一度もない","　　めったにない","　　ときどきある","　　よくある","　　いつも",false,false,false,false,false,{"$f":"IF(I11=TRUE,D7,IF(J11=TRUE,E7,IF(K11=TRUE,F7,IF(L11=TRUE,G7,IF(M11=TRUE,H7,\"未入力\")))))","v":"未入力"},null,null,null,null,0]
[]
[null,null,null,null,null,null,"合計点数",{"$f":"SUM(N3:N12)","v":0},null,null,null,null,null,null,{"$f":"IF(U2=\"未入力\",\"未入力項目があります\",IF(U3=\"未入力\",\"未入力項目があります\",IF(U4=\"未入力\",\"未入力項目があります\",IF(U5=\"未入力\",\"未入力項目があります\",IF(U7=\"未入力\",\"未入力項目があります\",IF(U8=\"未入力\",\"未入力項目があります\",IF(U9=\"未入力\",\"未入力項目があります\",IF(U10=\"未入力\",\"未入力項目があります\",\" \"))))))))","v":" "}]
[null,null,null,null,null,null,null,{"$f":"IF(N3=\"未入力\",\"未入力項目があります\",IF(N4=\"未入力\",\"未入力項目があります\",IF(N5=\"未入力\",\"未入力項目があります\",IF(N6=\"未入力\",\"未入力項目があります\",IF(N8=\"未入力\",\"未入力項目があります\",IF(N9=\"未入力\",\"未入力項目があります\",IF(N10=\"未入力\",\"未入力項目があります\",IF(N11=\"未入力\",\"未入力項目があります\",\" \"))))))))","v":"未入力項目があります"}]

{"sheet":"28週齢","index":5,"n_rows":14,"n_cols":19,"rows_kept":14,"cut":false,"hidden":false,"merged":[[0,0,0,13],[1,0,1,1],[12,7,12,13],[12,14,12,21],[13,7,13,14]]}
["CAPD AnkerPoint　28週齢"]
[null,null,null,4,3,2,1,0,null,null,null,null,null,"個別点数"]
["1.世話してくれる人とアイコンタクトができますか？","視線を保つ。親を好む。話す人を見る。",null,"　　一度もない","　　めったにない","　　ときどきある","　　よくある","　　いつも",false,false,false,false,false,{"$f":"IF(I3=TRUE,D2,IF(J3=TRUE,E2,IF(K3=TRUE,F2,IF(L3=TRUE,G2,IF(M3=TRUE,H2,\"未入力\")))))","v":"未入力"},null,null,null,null,{"$f":"COUNTIF(I3:M3,TRUE)","v":0}]
["2.目的のある行動をしますか？","なめらかな動きで手を差し出す",null,"　　一度もない","　　めったにない","　　ときどきある","　　よくある","　　いつも",false,false,false,false,false,{"$f":"IF(I4=TRUE,D2,IF(J4=TRUE,E2,IF(K4=TRUE,F2,IF(L4=TRUE,G2,IF(M4=TRUE,H2,\"未入力\")))))","v":"未入力"},null,null,null,null,0]
["3.周囲の状況に関心がありますか？","他の家族よりも母親をより好む。\n新しい物と慣れ親しんだ物を区別する。",null,"　　一度もない","　　めったにない","　　ときどきある","　　よくある","　　いつも",false,false,false,false,false,{"$f":"IF(I5=TRUE,D2,IF(J5=TRUE,E2,IF(K5=TRUE,F2,IF(L5=TRUE,G2,IF(M5=TRUE,H2,\"未入力\")))))","v":"未入力"},null,null,null,null,0]
["4.要求と欲求を伝えていますか？","要求があると声をだしたり、指し示したりする。例)空腹、不快、物や周囲に興味があるとき。",null,"　　一度もない","　　めったにない","　　ときどきある","　　よくある","　　いつも",false,false,false,false,false,{"$f":"IF(I6=TRUE,D2,IF(J6=TRUE,E2,IF(K6=TRUE,F2,IF(L6=TRUE,G2,IF(M6=TRUE,H2,\"未入力\")))))","v":"未入力"},null,null,null,null,0]
[null,null,null,0,1,2,3,4,null,null,null,null,null,null,null,null,null,null,0]
["5. 落ち着きがないですか？","おだやかな状態が継続しない",null,"　　一度もない","　　めったにない","　　ときどきある","　　よくある","　　いつも",false,false,false,false,false,{"$f":"IF(I8=TRUE,D7,IF(J8=TRUE,E7,IF(K8=TRUE,F7,IF(L8=TRUE,G7,IF(M8=TRUE,H7,\"未入力\")))))","v":"未入力"},null,null,null,null,0]
["6. なぐさめられないですか？","普段の方法でなだめることができない。\n例) 歌う、抱っこする、話しかける",null,"　　一度もない","　　めったにない","　　ときどきある","　　よくある","　　いつも",false,false,false,false,false,{"$f":"IF(I9=TRUE,D7,IF(J9=TRUE,E7,IF(K9=TRUE,F7,IF(L9=TRUE,G7,IF(M9=TRUE,H7,\"未入力\")))))","v":"未入力"},null,null,null,null,0]
["7. 活動性が低下していませんか？起きている間、動きが少なくなっていませんか？","手を差し出す、握る、ベットの中で動きまわる、ものを押しのけることをほとんどしない",null,"　　一度もない","　　めったにない","　　ときどきある","　　よくある","　　いつも",false,false,false,false,false,{"$f":"IF(I10=TRUE,D7,IF(J10=TRUE,E7,IF(K10=TRUE,F7,IF(L10=TRUE,G7,IF(M10=TRUE,H7,\"未入力\")))))","v":"未入力"},null,null,null,null,0]
["8. 関わりに反応するのに時間がかかりますか？","関わりの中で、喃語を話したり、笑顔になったり笑ったりしない。（関わりを拒否した場合でも）",null,"　　一度もない","　　めったにない","　　ときどきある","　　よくある","　　いつも",false,false,false,false,false,{"$f":"IF(I11=TRUE,D7,IF(J11=TRUE,E7,IF(K11=TRUE,F7,IF(L11=TRUE,G7,IF(M11=TRUE,H7,\"未入力\")))))","v":"未入力"},null,null,null,null,0]
[]
[null,null,null,null,null,null,"合計点数",{"$f":"SUM(N3:N12)","v":0},null,null,null,null,null,null,{"$f":"IF(U2=\"未入力\",\"未入力項目があります\",IF(U3=\"未入力\",\"未入力項目があります\",IF(U4=\"未入力\",\"未入力項目があります\",IF(U5=\"未入力\",\"未入力項目があります\",IF(U7=\"未入力\",\"未入力項目があります\",IF(U8=\"未入力\",\"未入力項目があります\",IF(U9=\"未入力\",\"未入力項目があります\",IF(U10=\"未入力\",\"未入力項目があります\",\" \"))))))))","v":" "}]
[null,null,null,null,null,null,null,{"$f":"IF(N3=\"未入力\",\"未入力項目があります\",IF(N4=\"未入力\",\"未入力項目があります\",IF(N5=\"未入力\",\"未入力項目があります\",IF(N6=\"未入力\",\"未入力項目があります\",IF(N8=\"未入力\",\"未入力項目があります\",IF(N9=\"未入力\",\"未入力項目があります\",IF(N10=\"未入力\",\"未入力項目があります\",IF(N11=\"未入力\",\"未入力項目があります\",\" \"))))))))","v":"未入力項目があります"}]

{"sheet":"1歳","index":6,"n_rows":14,"n_cols":19,"rows_kept":14,"cut":false,"hidden":false,"merged":[[0,0,0,13],[1,0,1,1],[12,7,12,13],[12,14,12,21],[13,7,13,14]]}
["CAPD AnkerPoint　1歳"]
[null,null,null,4,3,2,1,0,null,null,null,null,null,"個別点数"]
["1.世話してくれる人とアイコンタクトができますか？","視線を保つ。親を好む。話す人を見る。",null,"　　一度もない","　　めったにない","　　ときどきある","　　よくある","　　いつも",false,false,false,false,false,{"$f":"IF(I3=TRUE,D2,IF(J3=TRUE,E2,IF(K3=TRUE,F2,IF(L3=TRUE,G2,IF(M3=TRUE,H2,\"未入力\")))))","v":"未入力"},null,null,null,null,{"$f":"COUNTIF(I3:M3,TRUE)","v":0}]
["2.目的のある行動をしますか？","手を差し出して物を取ろうとする。姿勢を変えようとする。動ければ立ち上がろうとする",null,"　　一度もない","　　めったにない","　　ときどきある","　　よくある","　　いつも",false,false,false,false,false,{"$f":"IF(I4=TRUE,D2,IF(J4=TRUE,E2,IF(K4=TRUE,F2,IF(L4=TRUE,G2,IF(M4=TRUE,H2,\"未入力\")))))","v":"未入力"},null,null,null,null,0]
["3.周囲の状況に関心がありますか？","他の家族よりもまず親を好む。気に入った世話してくれる人から離されると動揺する。お気に入りの毛布や動物のぬいぐるみなどの、慣れ親しんだ物に癒される。",null,"　　一度もない","　　めったにない","　　ときどきある","　　よくある","　　いつも",false,false,false,false,false,{"$f":"IF(I5=TRUE,D2,IF(J5=TRUE,E2,IF(K5=TRUE,F2,IF(L5=TRUE,G2,IF(M5=TRUE,H2,\"未入力\")))))","v":"未入力"},null,null,null,null,0]
["4.要求と欲求を伝えていますか？","一語文や身振りを使う。",null,"　　一度もない","　　めったにない","　　ときどきある","　　よくある","　　いつも",false,false,false,false,false,{"$f":"IF(I6=TRUE,D2,IF(J6=TRUE,E2,IF(K6=TRUE,F2,IF(L6=TRUE,G2,IF(M6=TRUE,H2,\"未入力\")))))","v":"未入力"},null,null,null,null,0]
[null,null,null,0,1,2,3,4,null,null,null,null,null,null,null,null,null,null,0]
["5. 落ち着きがないですか？","おだやかな状態が継続しない",null,"　　一度もない","　　めったにない","　　ときどきある","　　よくある","　　いつも",false,false,false,false,false,{"$f":"IF(I8=TRUE,D7,IF(J8=TRUE,E7,IF(K8=TRUE,F7,IF(L8=TRUE,G7,IF(M8=TRUE,H7,\"未入力\")))))","v":"未入力"},null,null,null,null,0]
["6. なぐさめられないですか？","普段の方法でなだめることができない。例) 歌う、抱っこする、話しかける、本を読む",null,"　　一度もない","　　めったにない","　　ときどきある","　　よくある","　　いつも",false,false,false,false,false,{"$f":"IF(I9=TRUE,D7,IF(J9=TRUE,E7,IF(K9=TRUE,F7,IF(L9=TRUE,G7,IF(M9=TRUE,H7,\"未入力\")))))","v":"未入力"},null,null,null,null,0]
["7. 活動性が低下していませんか？起きている間、動きが少なくなっていませんか？","遊ぶ、起き上がる、引っ張ろうとすることはほとんどしない。もし動けても、はいはいや歩き回ることはしない。",null,"　　一度もない","　　めったにない","　　ときどきある","　　よくある","　　いつも",false,false,false,false,false,{"$f":"IF(I10=TRUE,D7,IF(J10=TRUE,E7,IF(K10=TRUE,F7,IF(L10=TRUE,G7,IF(M10=TRUE,H7,\"未入力\")))))","v":"未入力"},null,null,null,null,0]
["8. 関わりに反応するのに時間がかかりますか？","簡単な指示に従わない。話せる場合でも、子供が理解できる言葉での簡単な指示に従わない。",null,"　　一度もない","　　めったにない","　　ときどきある","　　よくある","　　いつも",false,false,false,false,false,{"$f":"IF(I11=TRUE,D7,IF(J11=TRUE,E7,IF(K11=TRUE,F7,IF(L11=TRUE,G7,IF(M11=TRUE,H7,\"未入力\")))))","v":"未入力"},null,null,null,null,0]
[]
[null,null,null,null,null,null,"合計点数",{"$f":"SUM(N3:N12)","v":0},null,null,null,null,null,null,{"$f":"IF(U2=\"未入力\",\"未入力項目があります\",IF(U3=\"未入力\",\"未入力項目があります\",IF(U4=\"未入力\",\"未入力項目があります\",IF(U5=\"未入力\",\"未入力項目があります\",IF(U7=\"未入力\",\"未入力項目があります\",IF(U8=\"未入力\",\"未入力項目があります\",IF(U9=\"未入力\",\"未入力項目があります\",IF(U10=\"未入力\",\"未入力項目があります\",\" \"))))))))","v":" "}]
[null,null,null,null,null,null,null,{"$f":"IF(N3=\"未入力\",\"未入力項目があります\",IF(N4=\"未入力\",\"未入力項目があります\",IF(N5=\"未入力\",\"未入力項目があります\",IF(N6=\"未入力\",\"未入力項目があります\",IF(N8=\"未入力\",\"未入力項目があります\",IF(N9=\"未入力\",\"未入力項目があります\",IF(N10=\"未入力\",\"未入力項目があります\",IF(N11=\"未入力\",\"未入力項目があります\",\" \"))))))))","v":"未入力項目があります"}]

{"sheet":"2歳","index":7,"n_rows":14,"n_cols":19,"rows_kept":14,"cut":false,"hidden":false,"merged":[[0,0,0,13],[1,0,1,1],[12,7,12,13],[12,14,12,21],[13,7,13,14]]}
["CAPD AnkerPoint　2歳"]
[null,null,null,4,3,2,1,0,null,null,null,null,null,"個別点数"]
["1.世話してくれる人とアイコンタクトができますか？","視線を保つ。親を好む。話す人を見る。",null,"　　一度もない","　　めったにない","　　ときどきある","　　よくある","　　いつも",false,false,false,false,false,{"$f":"IF(I3=TRUE,D2,IF(J3=TRUE,E2,IF(K3=TRUE,F2,IF(L3=TRUE,G2,IF(M3=TRUE,H2,\"未入力\")))))","v":"未入力"},null,null,null,null,{"$f":"COUNTIF(I3:M3,TRUE)","v":0}]
["2.目的のある行動をしますか？","手を差し出して物を取ろうとする。姿勢を変えようとする。動ければ立ち上がろうとする",null,"　　一度もない","　　めったにない","　　ときどきある","　　よくある","　　いつも",false,false,false,false,false,{"$f":"IF(I4=TRUE,D2,IF(J4=TRUE,E2,IF(K4=TRUE,F2,IF(L4=TRUE,G2,IF(M4=TRUE,H2,\"未入力\")))))","v":"未入力"},null,null,null,null,0]
["3.周囲の状況に関心がありますか？","他の家族よりもまず親を好む。気に入った世話してくれる人から離されると動揺する。お気に入りの毛布や物のぬいぐるみなどの、慣れ親しんだ物に癒される。",null,"　　一度もない","　　めったにない","　　ときどきある","　　よくある","　　いつも",false,false,false,false,false,{"$f":"IF(I5=TRUE,D2,IF(J5=TRUE,E2,IF(K5=TRUE,F2,IF(L5=TRUE,G2,IF(M5=TRUE,H2,\"未入力\")))))","v":"未入力"},null,null,null,null,0]
["4.要求と欲求を伝えていますか？","3-4語文や身振りを使い示す。自分でトイレに行きたいと示すことができる。",null,"　　一度もない","　　めったにない","　　ときどきある","　　よくある","　　いつも",false,false,false,false,false,{"$f":"IF(I6=TRUE,D2,IF(J6=TRUE,E2,IF(K6=TRUE,F2,IF(L6=TRUE,G2,IF(M6=TRUE,H2,\"未入力\")))))","v":"未入力"},null,null,null,null,0]
[null,null,null,0,1,2,3,4,null,null,null,null,null,null,null,null,null,null,0]
["5. 落ち着きがないですか？","おだやかな状態が継続しない",null,"　　一度もない","　　めったにない","　　ときどきある","　　よくある","　　いつも",false,false,false,false,false,{"$f":"IF(I8=TRUE,D7,IF(J8=TRUE,E7,IF(K8=TRUE,F7,IF(L8=TRUE,G7,IF(M8=TRUE,H7,\"未入力\")))))","v":"未入力"},null,null,null,null,0]
["6. なぐさめられないですか？","普段の方法でなだめることができない。例) 歌う、抱っこする、話しかける、本を読む(癇癪をおこしても、落ち着かせることはできる)",null,"　　一度もない","　　めったにない","　　ときどきある","　　よくある","　　いつも",false,false,false,false,false,{"$f":"IF(I9=TRUE,D7,IF(J9=TRUE,E7,IF(K9=TRUE,F7,IF(L9=TRUE,G7,IF(M9=TRUE,H7,\"未入力\")))))","v":"未入力"},null,null,null,null,0]
["7. 活動性が低下していませんか？起きている間、動きが少なくなっていませんか？","より複雑に遊び、起き上がろうとし、周りを動き回ることはほとんどしない。もしできたとしても立ったり、歩いたり、ジャンプすることはほとんどない。",null,"　　一度もない","　　めったにない","　　ときどきある","　　よくある","　　いつも",false,false,false,false,false,{"$f":"IF(I10=TRUE,D7,IF(J10=TRUE,E7,IF(K10=TRUE,F7,IF(L10=TRUE,G7,IF(M10=TRUE,H7,\"未入力\")))))","v":"未入力"},null,null,null,null,0]
["8. 関わりに反応するのに時間がかかりますか？","1-2段階の簡単な命令に従わない。話せる場合でも、より複雑な指示に従わない。",null,"　　一度もない","　　めったにない","　　ときどきある","　　よくある","　　いつも",false,false,false,false,false,{"$f":"IF(I11=TRUE,D7,IF(J11=TRUE,E7,IF(K11=TRUE,F7,IF(L11=TRUE,G7,IF(M11=TRUE,H7,\"未入力\")))))","v":"未入力"},null,null,null,null,0]
[]
[null,null,null,null,null,null,"合計点数",{"$f":"SUM(N3:N12)","v":0},null,null,null,null,null,null,{"$f":"IF(U2=\"未入力\",\"未入力項目があります\",IF(U3=\"未入力\",\"未入力項目があります\",IF(U4=\"未入力\",\"未入力項目があります\",IF(U5=\"未入力\",\"未入力項目があります\",IF(U7=\"未入力\",\"未入力項目があります\",IF(U8=\"未入力\",\"未入力項目があります\",IF(U9=\"未入力\",\"未入力項目があります\",IF(U10=\"未入力\",\"未入力項目があります\",\" \"))))))))","v":" "}]
[null,null,null,null,null,null,null,{"$f":"IF(N3=\"未入力\",\"未入力項目があります\",IF(N4=\"未入力\",\"未入力項目があります\",IF(N5=\"未入力\",\"未入力項目があります\",IF(N6=\"未入力\",\"未入力項目があります\",IF(N8=\"未入力\",\"未入力項目があります\",IF(N9=\"未入力\",\"未入力項目があります\",IF(N10=\"未入力\",\"未入力項目があります\",IF(N11=\"未入力\",\"未入力項目があります\",\" \"))))))))","v":"未入力項目があります"}]

{"sheet":"Sheet1","index":8,"n_rows":615,"n_cols":1,"rows_kept":615,"cut":false,"hidden":true,"merged":[]}
["Private Sub CheckBox1_Click()"]
["Dim r As Range, ob As OLEObject"]
["Set r = CheckBox1.TopLeftCell"]
["Set ob = OLEObjects(\"Checkbox1\")"]
["If ob.Object.Value Then"]
["r.Interior.Color = vbRed"]
["Else"]
["r.Interior.Color = vbWhite"]
["End If"]
["End Sub"]
[]
["Private Sub CheckBox2_Click()"]
["Dim r As Range, ob As OLEObject"]
["Set r = CheckBox2.TopLeftCell"]
["Set ob = OLEObjects(\"Checkbox2\")"]
["If ob.Object.Value Then"]
["r.Interior.Color = vbRed"]
["Else"]
["r.Interior.Color = vbWhite"]
["End If"]
["End Sub"]
[]
["Private Sub CheckBox3_Click()"]
["Dim r As Range, ob As OLEObject"]
["Set r = CheckBox3.TopLeftCell"]
["Set ob = OLEObjects(\"Checkbox3\")"]
["If ob.Object.Value Then"]
["r.Interior.Color = vbRed"]
["Else"]
["r.Interior.Color = vbWhite"]
["End If"]
["End Sub"]
[]
["Private Sub CheckBox4_Click()"]
["Dim r As Range, ob As OLEObject"]
["Set r = CheckBox4.TopLeftCell"]
["Set ob = OLEObjects(\"Checkbox4\")"]
["If ob.Object.Value Then"]
["r.Interior.Color = vbRed"]
["Else"]
["r.Interior.Color = vbWhite"]
["End If"]
["End Sub"]
[]
["Private Sub CheckBox5_Click()"]
["Dim r As Range, ob As OLEObject"]
["Set r = CheckBox5.TopLeftCell"]
["Set ob = OLEObjects(\"Checkbox5\")"]
["If ob.Object.Value Then"]
["r.Interior.Color = vbRed"]
["Else"]
["r.Interior.Color = vbWhite"]
["End If"]
["End Sub"]
[]
["Private Sub CheckBox6_Click()"]
["Dim r As Range, ob As OLEObject"]
["Set r = CheckBox6.TopLeftCell"]
["Set ob = OLEObjects(\"Checkbox6\")"]
["If ob.Object.Value Then"]
["r.Interior.Color = vbRed"]
["Else"]
["r.Interior.Color = vbWhite"]
["End If"]
["End Sub"]
[]
["Private Sub CheckBox7_Click()"]
["Dim r As Range, ob As OLEObject"]
["Set r = CheckBox7.TopLeftCell"]
["Set ob = OLEObjects(\"Checkbox7\")"]
["If ob.Object.Value Then"]
["r.Interior.Color = vbRed"]
["Else"]
["r.Interior.Color = vbWhite"]
["End If"]
["End Sub"]
[]
["Private Sub CheckBox8_Click()"]
["Dim r As Range, ob As OLEObject"]
["Set r = CheckBox8.TopLeftCell"]
["Set ob = OLEObjects(\"Checkbox8\")"]
["If ob.Object.Value Then"]
["r.Interior.Color = vbRed"]
["Else"]
["r.Interior.Color = vbWhite"]
["End If"]
["End Sub"]
[]
["Private Sub CheckBox9_Click()"]
["Dim r As Range, ob As OLEObject"]
["Set r = CheckBox9.TopLeftCell"]
["Set ob = OLEObjects(\"Checkbox9\")"]
["If ob.Object.Value Then"]
["r.Interior.Color = vbRed"]
["Else"]
["r.Interior.Color = vbWhite"]
["End If"]
["End Sub"]
[]
["Private Sub CheckBox10_Click()"]
["Dim r As Range, ob As OLEObject"]
["Set r = CheckBox10.TopLeftCell"]
["Set ob = OLEObjects(\"Checkbox10\")"]
["If ob.Object.Value Then"]
["r.Interior.Color = vbRed"]
["Else"]
["r.Interior.Color = vbWhite"]
["End If"]
["End Sub"]
[]
["Private Sub CheckBox11_Click()"]
["Dim r As Range, ob As OLEObject"]
["Set r = CheckBox11.TopLeftCell"]
["Set ob = OLEObjects(\"Checkbox11\")"]
["If ob.Object.Value Then"]
["r.Interior.Color = vbRed"]
["Else"]
["r.Interior.Color = vbWhite"]
["End If"]
["End Sub"]
[]
["Private Sub CheckBox12_Click()"]
["Dim r As Range, ob As OLEObject"]
["Set r = CheckBox12.TopLeftCell"]
["Set ob = OLEObjects(\"Checkbox12\")"]
["If ob.Object.Value Then"]
["r.Interior.Color = vbRed"]
["Else"]
["r.Interior.Color = vbWhite"]
["End If"]
["End Sub"]
[]
["Private Sub CheckBox13_Click()"]
["Dim r As Range, ob As OLEObject"]
["Set r = CheckBox13.TopLeftCell"]
["Set ob = OLEObjects(\"Checkbox13\")"]
["If ob.Object.Value Then"]
["r.Interior.Color = vbRed"]
["Else"]
["r.Interior.Color = vbWhite"]
["End If"]
["End Sub"]
[]
["Private Sub CheckBox14_Click()"]
["Dim r As Range, ob As OLEObject"]
["Set r = CheckBox14.TopLeftCell"]
["Set ob = OLEObjects(\"Checkbox14\")"]
["If ob.Object.Value Then"]
["r.Interior.Color = vbRed"]
["Else"]
["r.Interior.Color = vbWhite"]
["End If"]
["End Sub"]
[]
["Private Sub CheckBox15_Click()"]
["Dim r As Range, ob As OLEObject"]
["Set r = CheckBox15.TopLeftCell"]
["Set ob = OLEObjects(\"Checkbox15\")"]
["If ob.Object.Value Then"]
["r.Interior.Color = vbRed"]
["Else"]
["r.Interior.Color = vbWhite"]
["End If"]
["End Sub"]
[]
["Private Sub CheckBox16_Click()"]
["Dim r As Range, ob As OLEObject"]
["Set r = CheckBox16.TopLeftCell"]
["Set ob = OLEObjects(\"Checkbox16\")"]
["If ob.Object.Value Then"]
["r.Interior.Color = vbRed"]
["Else"]
["r.Interior.Color = vbWhite"]
["End If"]
["End Sub"]
[]
["Private Sub CheckBox17_Click()"]
["Dim r As Range, ob As OLEObject"]
["Set r = CheckBox17.TopLeftCell"]
["Set ob = OLEObjects(\"Checkbox17\")"]
["If ob.Object.Value Then"]
["r.Interior.Color = vbRed"]
["Else"]
["r.Interior.Color = vbWhite"]
["End If"]
["End Sub"]
[]
["Private Sub CheckBox18_Click()"]
["Dim r As Range, ob As OLEObject"]
["Set r = CheckBox18.TopLeftCell"]
["Set ob = OLEObjects(\"Checkbox18\")"]
["If ob.Object.Value Then"]
["r.Interior.Color = vbRed"]
["Else"]
["r.Interior.Color = vbWhite"]
["End If"]
["End Sub"]
[]
["Private Sub CheckBox19_Click()"]
["Dim r As Range, ob As OLEObject"]
["Set r = CheckBox19.TopLeftCell"]
["Set ob = OLEObjects(\"Checkbox19\")"]
["If ob.Object.Value Then"]
["r.Interior.Color = vbRed"]
["Else"]
["r.Interior.Color = vbWhite"]
["End If"]
["End Sub"]
[]
["Private Sub CheckBox20_Click()"]
["Dim r As Range, ob As OLEObject"]
["Set r = CheckBox20.TopLeftCell"]
["Set ob = OLEObjects(\"Checkbox20\")"]
["If ob.Object.Value Then"]
["r.Interior.Color = vbRed"]
["Else"]
["r.Interior.Color = vbWhite"]
["End If"]
["End Sub"]
[]
["Private Sub CheckBox21_Click()"]
["Dim r As Range, ob As OLEObject"]
["Set r = CheckBox21.TopLeftCell"]
["Set ob = OLEObjects(\"Checkbox21\")"]
["If ob.Object.Value Then"]
["r.Interior.Color = vbRed"]
["Else"]
["r.Interior.Color = vbWhite"]
["End If"]
["End Sub"]
[]
["Private Sub CheckBox22_Click()"]
["Dim r As Range, ob As OLEObject"]
["Set r = CheckBox22.TopLeftCell"]
["Set ob = OLEObjects(\"Checkbox22\")"]
["If ob.Object.Value Then"]
["r.Interior.Color = vbRed"]
["Else"]
["r.Interior.Color = vbWhite"]
["End If"]
["End Sub"]
[]
["Private Sub CheckBox23_Click()"]
["Dim r As Range, ob As OLEObject"]
["Set r = CheckBox23.TopLeftCell"]
["Set ob = OLEObjects(\"Checkbox23\")"]
["If ob.Object.Value Then"]
["r.Interior.Color = vbRed"]
["Else"]
["r.Interior.Color = vbWhite"]
["End If"]
["End Sub"]
[]
["Private Sub CheckBox24_Click()"]
["Dim r As Range, ob As OLEObject"]
["Set r = CheckBox24.TopLeftCell"]
["Set ob = OLEObjects(\"Checkbox24\")"]
["If ob.Object.Value Then"]
["r.Interior.Color = vbRed"]
["Else"]
["r.Interior.Color = vbWhite"]
["End If"]
["End Sub"]
[]
["Private Sub CheckBox25_Click()"]
["Dim r As Range, ob As OLEObject"]
["Set r = CheckBox25.TopLeftCell"]
["Set ob = OLEObjects(\"Checkbox25\")"]
["If ob.Object.Value Then"]
["r.Interior.Color = vbRed"]
["Else"]
["r.Interior.Color = vbWhite"]
["End If"]
["End Sub"]
[]
["Private Sub CheckBox26_Click()"]
["Dim r As Range, ob As OLEObject"]
["Set r = CheckBox26.TopLeftCell"]
["Set ob = OLEObjects(\"Checkbox26\")"]
["If ob.Object.Value Then"]
["r.Interior.Color = vbRed"]
["Else"]
["r.Interior.Color = vbWhite"]
["End If"]
["End Sub"]
[]
["Private Sub CheckBox27_Click()"]
["Dim r As Range, ob As OLEObject"]
["Set r = CheckBox27.TopLeftCell"]
["Set ob = OLEObjects(\"Checkbox27\")"]
["If ob.Object.Value Then"]
["r.Interior.Color = vbRed"]
["Else"]
["r.Interior.Color = vbWhite"]
["End If"]
["End Sub"]
[]
["Private Sub CheckBox28_Click()"]
["Dim r As Range, ob As OLEObject"]
["Set r = CheckBox28.TopLeftCell"]
["Set ob = OLEObjects(\"Checkbox28\")"]
["If ob.Object.Value Then"]
["r.Interior.Color = vbRed"]
["Else"]
["r.Interior.Color = vbWhite"]
["End If"]
["End Sub"]
[]
["Private Sub CheckBox29_Click()"]
["Dim r As Range, ob As OLEObject"]
["Set r = CheckBox29.TopLeftCell"]
["Set ob = OLEObjects(\"Checkbox29\")"]
["If ob.Object.Value Then"]
["r.Interior.Color = vbRed"]
["Else"]
["r.Interior.Color = vbWhite"]
["End If"]
["End Sub"]
[]
["Private Sub CheckBox30_Click()"]
["Dim r As Range, ob As OLEObject"]
["Set r = CheckBox30.TopLeftCell"]
["Set ob = OLEObjects(\"Checkbox30\")"]
["If ob.Object.Value Then"]
["r.Interior.Color = vbRed"]
["Else"]
["r.Interior.Color = vbWhite"]
["End If"]
["End Sub"]
[]
["Private Sub CheckBox31_Click()"]
["Dim r As Range, ob As OLEObject"]
["Set r = CheckBox31.TopLeftCell"]
["Set ob = OLEObjects(\"Checkbox31\")"]
["If ob.Object.Value Then"]
["r.Interior.Color = vbRed"]
["Else"]
["r.Interior.Color = vbWhite"]
["End If"]
["End Sub"]
[]
["Private Sub CheckBox32_Click()"]
["Dim r As Range, ob As OLEObject"]
["Set r = CheckBox32.TopLeftCell"]
["Set ob = OLEObjects(\"Checkbox32\")"]
["If ob.Object.Value Then"]
["r.Interior.Color = vbRed"]
["Else"]
["r.Interior.Color = vbWhite"]
["End If"]
["End Sub"]
[]
["Private Sub CheckBox33_Click()"]
["Dim r As Range, ob As OLEObject"]
["Set r = CheckBox33.TopLeftCell"]
["Set ob = OLEObjects(\"Checkbox33\")"]
["If ob.Object.Value Then"]
["r.Interior.Color = vbRed"]
["Else"]
["r.Interior.Color = vbWhite"]
["End If"]
["End Sub"]
[]
["Private Sub CheckBox34_Click()"]
["Dim r As Range, ob As OLEObject"]
["Set r = CheckBox34.TopLeftCell"]
["Set ob = OLEObjects(\"Checkbox34\")"]
["If ob.Object.Value Then"]
["r.Interior.Color = vbRed"]
["Else"]
["r.Interior.Color = vbWhite"]
["End If"]
["End Sub"]
[]
["Private Sub CheckBox35_Click()"]
["Dim r As Range, ob As OLEObject"]
["Set r = CheckBox35.TopLeftCell"]
["Set ob = OLEObjects(\"Checkbox35\")"]
["If ob.Object.Value Then"]
["r.Interior.Color = vbRed"]
["Else"]
["r.Interior.Color = vbWhite"]
["End If"]
["End Sub"]
[]
["Private Sub CheckBox36_Click()"]
["Dim r As Range, ob As OLEObject"]
["Set r = CheckBox36.TopLeftCell"]
["Set ob = OLEObjects(\"Checkbox36\")"]
["If ob.Object.Value Then"]
["r.Interior.Color = vbRed"]
["Else"]
["r.Interior.Color = vbWhite"]
["End If"]
["End Sub"]
[]
["Private Sub CheckBox37_Click()"]
["Dim r As Range, ob As OLEObject"]
["Set r = CheckBox37.TopLeftCell"]
["Set ob = OLEObjects(\"Checkbox37\")"]
["If ob.Object.Value Then"]
["r.Interior.Color = vbRed"]
["Else"]
["r.Interior.Color = vbWhite"]
["End If"]
["End Sub"]
[]
["Private Sub CheckBox38_Click()"]
["Dim r As Range, ob As OLEObject"]
["Set r = CheckBox38.TopLeftCell"]
["Set ob = OLEObjects(\"Checkbox38\")"]
["If ob.Object.Value Then"]
["r.Interior.Color = vbRed"]
["Else"]
["r.Interior.Color = vbWhite"]
["End If"]
["End Sub"]
[]
["Private Sub CheckBox39_Click()"]
["Dim r As Range, ob As OLEObject"]
["Set r = CheckBox39.TopLeftCell"]
["Set ob = OLEObjects(\"Checkbox39\")"]
["If ob.Object.Value Then"]
["r.Interior.Color = vbRed"]
["Else"]
["r.Interior.Color = vbWhite"]
["End If"]
["End Sub"]
[]
["Private Sub CheckBox40_Click()"]
["Dim r As Range, ob As OLEObject"]
["Set r = CheckBox40.TopLeftCell"]
["Set ob = OLEObjects(\"Checkbox40\")"]
["If ob.Object.Value Then"]
["r.Interior.Color = vbRed"]
["Else"]
["r.Interior.Color = vbWhite"]
["End If"]
["End Sub"]
[]
["Private Sub CheckBox41_Click()"]
["Dim r As Range, ob As OLEObject"]
["Set r = CheckBox41.TopLeftCell"]
["Set ob = OLEObjects(\"Checkbox41\")"]
["If ob.Object.Value Then"]
["r.Interior.Color = vbRed"]
["Else"]
["r.Interior.Color = vbWhite"]
["End If"]
["End Sub"]
[]
["Private Sub CheckBox42_Click()"]
["Dim r As Range, ob As OLEObject"]
["Set r = CheckBox42.TopLeftCell"]
["Set ob = OLEObjects(\"Checkbox42\")"]
["If ob.Object.Value Then"]
["r.Interior.Color = vbRed"]
["Else"]
["r.Interior.Color = vbWhite"]
["End If"]
["End Sub"]
[]
["Private Sub CheckBox43_Click()"]
["Dim r As Range, ob As OLEObject"]
["Set r = CheckBox43.TopLeftCell"]
["Set ob = OLEObjects(\"Checkbox43\")"]
["If ob.Object.Value Then"]
["r.Interior.Color = vbRed"]
["Else"]
["r.Interior.Color = vbWhite"]
["End If"]
["End Sub"]
[]
["Private Sub CheckBox44_Click()"]
["Dim r As Range, ob As OLEObject"]
["Set r = CheckBox44.TopLeftCell"]
["Set ob = OLEObjects(\"Checkbox44\")"]
["If ob.Object.Value Then"]
["r.Interior.Color = vbRed"]
["Else"]
["r.Interior.Color = vbWhite"]
["End If"]
["End Sub"]
[]
["Private Sub CheckBox45_Click()"]
["Dim r As Range, ob As OLEObject"]
["Set r = CheckBox45.TopLeftCell"]
["Set ob = OLEObjects(\"Checkbox45\")"]
["If ob.Object.Value Then"]
["r.Interior.Color = vbRed"]
["Else"]
["r.Interior.Color = vbWhite"]
["End If"]
["End Sub"]
[]
["Private Sub CheckBox46_Click()"]
["Dim r As Range, ob As OLEObject"]
["Set r = CheckBox46.TopLeftCell"]
["Set ob = OLEObjects(\"Checkbox46\")"]
["If ob.Object.Value Then"]
["r.Interior.Color = vbRed"]
["Else"]
["r.Interior.Color = vbWhite"]
["End If"]
["End Sub"]
[]
["Private Sub CheckBox47_Click()"]
["Dim r As Range, ob As OLEObject"]
["Set r = CheckBox47.TopLeftCell"]
["Set ob = OLEObjects(\"Checkbox47\")"]
["If ob.Object.Value Then"]
["r.Interior.Color = vbRed"]
["Else"]
["r.Interior.Color = vbWhite"]
["End If"]
["End Sub"]
[]
["Private Sub CheckBox48_Click()"]
["Dim r As Range, ob As OLEObject"]
["Set r = CheckBox48.TopLeftCell"]
["Set ob = OLEObjects(\"Checkbox48\")"]
["If ob.Object.Value Then"]
["r.Interior.Color = vbRed"]
["Else"]
["r.Interior.Color = vbWhite"]
["End If"]
["End Sub"]
[]
["Private Sub CheckBox49_Click()"]
["Dim r As Range, ob As OLEObject"]
["Set r = CheckBox49.TopLeftCell"]
["Set ob = OLEObjects(\"Checkbox49\")"]
["If ob.Object.Value Then"]
["r.Interior.Color = vbRed"]
["Else"]
["r.Interior.Color = vbWhite"]
["End If"]
["End Sub"]
[]
["Private Sub CheckBox50_Click()"]
["Dim r As Range, ob As OLEObject"]
["Set r = CheckBox50.TopLeftCell"]
["Set ob = OLEObjects(\"Checkbox50\")"]
["If ob.Object.Value Then"]
["r.Interior.Color = vbRed"]
["Else"]
["r.Interior.Color = vbWhite"]
["End If"]
["End Sub"]
[]
[]
[]
[]
[]
[]
[]
[]
[]
[]
["End Sub"]
[]
[]
[]
[]
[]
[]
[]
[]
[]
[]
["End Sub"]
[]
[]
[]
[]
[]
[]
[]
[]
[]
[]
["End Sub"]
[]
[]
[]
[]
[]
[]
[]
[]
[]
[]
["End Sub"]
[]
[]
[]
[]
[]
[]
[]
[]
[]
[]
["End Sub"]
[]
[]
[]
[]
[]
[]
[]
[]
[]
[]
["End Sub"]

{"sheet":"Sheet2","index":9,"n_rows":449,"n_cols":1,"rows_kept":449,"cut":false,"hidden":true,"merged":[]}
[" Private Sub CheckBox1_Change()"]
["    With CheckBox1"]
["       .BackStyle = fmBackStyleOpaque"]
["       .Visible = False"]
["       .Visible = True"]
["       .BackStyle = fmBackStyleTransparent"]
["    End With"]
[" End Sub"]
[]
[" Private Sub CheckBox2_Change()"]
["    With CheckBox2"]
["       .BackStyle = fmBackStyleOpaque"]
["       .Visible = False"]
["       .Visible = True"]
["       .BackStyle = fmBackStyleTransparent"]
["    End With"]
[" End Sub"]
[]
[" Private Sub CheckBox3_Change()"]
["    With CheckBox3"]
["       .BackStyle = fmBackStyleOpaque"]
["       .Visible = False"]
["       .Visible = True"]
["       .BackStyle = fmBackStyleTransparent"]
["    End With"]
[" End Sub"]
[]
[" Private Sub CheckBox4_Change()"]
["    With CheckBox4"]
["       .BackStyle = fmBackStyleOpaque"]
["       .Visible = False"]
["       .Visible = True"]
["       .BackStyle = fmBackStyleTransparent"]
["    End With"]
[" End Sub"]
[]
[" Private Sub CheckBox5_Change()"]
["    With CheckBox5"]
["       .BackStyle = fmBackStyleOpaque"]
["       .Visible = False"]
["       .Visible = True"]
["       .BackStyle = fmBackStyleTransparent"]
["    End With"]
[" End Sub"]
[]
[" Private Sub CheckBox6_Change()"]
["    With CheckBox6"]
["       .BackStyle = fmBackStyleOpaque"]
["       .Visible = False"]
["       .Visible = True"]
["       .BackStyle = fmBackStyleTransparent"]
["    End With"]
[" End Sub"]
[]
[" Private Sub CheckBox7_Change()"]
["    With CheckBox7"]
["       .BackStyle = fmBackStyleOpaque"]
["       .Visible = False"]
["       .Visible = True"]
["       .BackStyle = fmBackStyleTransparent"]
["    End With"]
[" End Sub"]
[]
[" Private Sub CheckBox8_Change()"]
["    With CheckBox8"]
["       .BackStyle = fmBackStyleOpaque"]
["       .Visible = False"]
["       .Visible = True"]
["       .BackStyle = fmBackStyleTransparent"]
["    End With"]
[" End Sub"]
[]
[" Private Sub CheckBox21_Change()"]
["    With CheckBox21"]
["       .BackStyle = fmBackStyleOpaque"]
["       .Visible = False"]
["       .Visible = True"]
["       .BackStyle = fmBackStyleTransparent"]
["    End With"]
[" End Sub"]
[]
[" Private Sub CheckBox22_Change()"]
["    With CheckBox22"]
["       .BackStyle = fmBackStyleOpaque"]
["       .Visible = False"]
["       .Visible = True"]
["       .BackStyle = fmBackStyleTransparent"]
["    End With"]
[" End Sub"]
[]
[" Private Sub CheckBox23_Change()"]
["    With CheckBox23"]
["       .BackStyle = fmBackStyleOpaque"]
["       .Visible = False"]
["       .Visible = True"]
["       .BackStyle = fmBackStyleTransparent"]
["    End With"]
[" End Sub"]
[]
[" Private Sub CheckBox24_Change()"]
["    With CheckBox24"]
["       .BackStyle = fmBackStyleOpaque"]
["       .Visible = False"]
["       .Visible = True"]
["       .BackStyle = fmBackStyleTransparent"]
["    End With"]
[" End Sub"]
[]
[" Private Sub CheckBox37_Change()"]
["    With CheckBox37"]
["       .BackStyle = fmBackStyleOpaque"]
["       .Visible = False"]
["       .Visible = True"]
["       .BackStyle = fmBackStyleTransparent"]
["    End With"]
[" End Sub"]
[]
[" Private Sub CheckBox38_Change()"]
["    With CheckBox38"]
["       .BackStyle = fmBackStyleOpaque"]
["       .Visible = False"]
["       .Visible = True"]
["       .BackStyle = fmBackStyleTransparent"]
["    End With"]
[" End Sub"]
[]
[" Private Sub CheckBox39_Change()"]
["    With CheckBox39"]
["       .BackStyle = fmBackStyleOpaque"]
["       .Visible = False"]
["       .Visible = True"]
["       .BackStyle = fmBackStyleTransparent"]
["    End With"]
[" End Sub"]
[]
[" Private Sub CheckBox40_Change()"]
["    With CheckBox40"]
["       .BackStyle = fmBackStyleOpaque"]
["       .Visible = False"]
["       .Visible = True"]
["       .BackStyle = fmBackStyleTransparent"]
["    End With"]
[" End Sub"]
[]
[" Private Sub CheckBox9_Change()"]
["    With CheckBox9"]
["       .BackStyle = fmBackStyleOpaque"]
["       .Visible = False"]
["       .Visible = True"]
["       .BackStyle = fmBackStyleTransparent"]
["    End With"]
[" End Sub"]
[]
[" Private Sub CheckBox10_Change()"]
["    With CheckBox10"]
["       .BackStyle = fmBackStyleOpaque"]
["       .Visible = False"]
["       .Visible = True"]
["       .BackStyle = fmBackStyleTransparent"]
["    End With"]
[" End Sub"]
[]
[" Private Sub CheckBox11_Change()"]
["    With CheckBox11"]
["       .BackStyle = fmBackStyleOpaque"]
["       .Visible = False"]
["       .Visible = True"]
["       .BackStyle = fmBackStyleTransparent"]
["    End With"]
[" End Sub"]
[]
[" Private Sub CheckBox12_Change()"]
["    With CheckBox12"]
["       .BackStyle = fmBackStyleOpaque"]
["       .Visible = False"]
["       .Visible = True"]
["       .BackStyle = fmBackStyleTransparent"]
["    End With"]
[" End Sub"]
[]
[" Private Sub CheckBox13_Change()"]
["    With CheckBox13"]
["       .BackStyle = fmBackStyleOpaque"]
["       .Visible = False"]
["       .Visible = True"]
["       .BackStyle = fmBackStyleTransparent"]
["    End With"]
[" End Sub"]
[]
[" Private Sub CheckBox14_Change()"]
["    With CheckBox14"]
["       .BackStyle = fmBackStyleOpaque"]
["       .Visible = False"]
["       .Visible = True"]
["       .BackStyle = fmBackStyleTransparent"]
["    End With"]
[" End Sub"]
[]
[" Private Sub CheckBox15_Change()"]
["    With CheckBox15"]
["       .BackStyle = fmBackStyleOpaque"]
["       .Visible = False"]
["       .Visible = True"]
["       .BackStyle = fmBackStyleTransparent"]
["    End With"]
[" End Sub"]
[]
[" Private Sub CheckBox16_Change()"]
["    With CheckBox16"]
["       .BackStyle = fmBackStyleOpaque"]
["       .Visible = False"]
["       .Visible = True"]
["       .BackStyle = fmBackStyleTransparent"]
["    End With"]
[" End Sub"]
[]
[" Private Sub CheckBox25_Change()"]
["    With CheckBox25"]
["       .BackStyle = fmBackStyleOpaque"]
["       .Visible = False"]
["       .Visible = True"]
["       .BackStyle = fmBackStyleTransparent"]
["    End With"]
[" End Sub"]
[]
[" Private Sub CheckBox26_Change()"]
["    With CheckBox26"]
["       .BackStyle = fmBackStyleOpaque"]
["       .Visible = False"]
["       .Visible = True"]
["       .BackStyle = fmBackStyleTransparent"]
["    End With"]
[" End Sub"]
[]
[" Private Sub CheckBox27_Change()"]
["    With CheckBox27"]
["       .BackStyle = fmBackStyleOpaque"]
["       .Visible = False"]
["       .Visible = True"]
["       .BackStyle = fmBackStyleTransparent"]
["    End With"]
[" End Sub"]
[]
[" Private Sub CheckBox28_Change()"]
["    With CheckBox28"]
["       .BackStyle = fmBackStyleOpaque"]
["       .Visible = False"]
["       .Visible = True"]
["       .BackStyle = fmBackStyleTransparent"]
["    End With"]
[" End Sub"]
[]
[" Private Sub CheckBox41_Change()"]
["    With CheckBox41"]
["       .BackStyle = fmBackStyleOpaque"]
["       .Visible = False"]
["       .Visible = True"]
["       .BackStyle = fmBackStyleTransparent"]
["    End With"]
[" End Sub"]
[]
[" Private Sub CheckBox42_Change()"]
["    With CheckBox42"]
["       .BackStyle = fmBackStyleOpaque"]
["       .Visible = False"]
["       .Visible = True"]
["       .BackStyle = fmBackStyleTransparent"]
["    End With"]
[" End Sub"]
[]
[" Private Sub CheckBox43_Change()"]
["    With CheckBox43"]
["       .BackStyle = fmBackStyleOpaque"]
["       .Visible = False"]
["       .Visible = True"]
["       .BackStyle = fmBackStyleTransparent"]
["    End With"]
[" End Sub"]
[]
[" Private Sub CheckBox44_Change()"]
["    With CheckBox44"]
["       .BackStyle = fmBackStyleOpaque"]
["       .Visible = False"]
["       .Visible = True"]
["       .BackStyle = fmBackStyleTransparent"]
["    End With"]
[" End Sub"]
[]
[" Private Sub CheckBox17_Change()"]
["    With CheckBox17"]
["       .BackStyle = fmBackStyleOpaque"]
["       .Visible = False"]
["       .Visible = True"]
["       .BackStyle = fmBackStyleTransparent"]
["    End With"]
[" End Sub"]
[]
[" Private Sub CheckBox18_Change()"]
["    With CheckBox18"]
["       .BackStyle = fmBackStyleOpaque"]
["       .Visible = False"]
["       .Visible = True"]
["       .BackStyle = fmBackStyleTransparent"]
["    End With"]
[" End Sub"]
[]
[" Private Sub CheckBox19_Change()"]
["    With CheckBox19"]
["       .BackStyle = fmBackStyleOpaque"]
["       .Visible = False"]
["       .Visible = True"]
["       .BackStyle = fmBackStyleTransparent"]
["    End With"]
[" End Sub"]
[]
[" Private Sub CheckBox20_Change()"]
["    With CheckBox20"]
["       .BackStyle = fmBackStyleOpaque"]
["       .Visible = False"]
["       .Visible = True"]
["       .BackStyle = fmBackStyleTransparent"]
["    End With"]
[" End Sub"]
[]
[" Private Sub CheckBox33_Change()"]
["    With CheckBox33"]
["       .BackStyle = fmBackStyleOpaque"]
["       .Visible = False"]
["       .Visible = True"]
["       .BackStyle = fmBackStyleTransparent"]
["    End With"]
[" End Sub"]
[]
[" Private Sub CheckBox34_Change()"]
["    With CheckBox34"]
["       .BackStyle = fmBackStyleOpaque"]
["       .Visible = False"]
["       .Visible = True"]
["       .BackStyle = fmBackStyleTransparent"]
["    End With"]
[" End Sub"]
[]
[" Private Sub CheckBox35_Change()"]
["    With CheckBox35"]
["       .BackStyle = fmBackStyleOpaque"]
["       .Visible = False"]
["       .Visible = True"]
["       .BackStyle = fmBackStyleTransparent"]
["    End With"]
[" End Sub"]
[]
[" Private Sub CheckBox36_Change()"]
["    With CheckBox36"]
["       .BackStyle = fmBackStyleOpaque"]
["       .Visible = False"]
["       .Visible = True"]
["       .BackStyle = fmBackStyleTransparent"]
["    End With"]
[" End Sub"]
[]
[" Private Sub CheckBox29_Change()"]
["    With CheckBox29"]
["       .BackStyle = fmBackStyleOpaque"]
["       .Visible = False"]
["       .Visible = True"]
["       .BackStyle = fmBackStyleTransparent"]
["    End With"]
[" End Sub"]
[]
[" Private Sub CheckBox30_Change()"]
["    With CheckBox30"]
["       .BackStyle = fmBackStyleOpaque"]
["       .Visible = False"]
["       .Visible = True"]
["       .BackStyle = fmBackStyleTransparent"]
["    End With"]
[" End Sub"]
[]
[" Private Sub CheckBox31_Change()"]
["    With CheckBox31"]
["       .BackStyle = fmBackStyleOpaque"]
["       .Visible = False"]
["       .Visible = True"]
["       .BackStyle = fmBackStyleTransparent"]
["    End With"]
[" End Sub"]
[]
[" Private Sub CheckBox32_Change()"]
["    With CheckBox32"]
["       .BackStyle = fmBackStyleOpaque"]
["       .Visible = False"]
["       .Visible = True"]
["       .BackStyle = fmBackStyleTransparent"]
["    End With"]
[" End Sub"]
[]
[" Private Sub CheckBox45_Change()"]
["    With CheckBox45"]
["       .BackStyle = fmBackStyleOpaque"]
["       .Visible = False"]
["       .Visible = True"]
["       .BackStyle = fmBackStyleTransparent"]
["    End With"]
[" End Sub"]
[]
[" Private Sub CheckBox46_Change()"]
["    With CheckBox46"]
["       .BackStyle = fmBackStyleOpaque"]
["       .Visible = False"]
["       .Visible = True"]
["       .BackStyle = fmBackStyleTransparent"]
["    End With"]
[" End Sub"]
[]
[" Private Sub CheckBox47_Change()"]
["    With CheckBox47"]
["       .BackStyle = fmBackStyleOpaque"]
["       .Visible = False"]
["       .Visible = True"]
["       .BackStyle = fmBackStyleTransparent"]
["    End With"]
[" End Sub"]
[]
[" Private Sub CheckBox48_Change()"]
["    With CheckBox48"]
["       .BackStyle = fmBackStyleOpaque"]
["       .Visible = False"]
["       .Visible = True"]
["       .BackStyle = fmBackStyleTransparent"]
["    End With"]
[" End Sub"]
[]
[" Private Sub CheckBox49_Change()"]
["    With CheckBox49"]
["       .BackStyle = fmBackStyleOpaque"]
["       .Visible = False"]
["       .Visible = True"]
["       .BackStyle = fmBackStyleTransparent"]
["    End With"]
[" End Sub"]
[]
[" Private Sub CheckBox50_Change()"]
["    With CheckBox50"]
["       .BackStyle = fmBackStyleOpaque"]
["       .Visible = False"]
["       .Visible = True"]
["       .BackStyle = fmBackStyleTransparent"]
["    End With"]
[" End Sub"]

{"sheet":"Sheet5","index":10,"n_rows":1001,"n_cols":6,"rows_kept":1001,"cut":false,"hidden":true,"merged":[]}
[]
[]
[null,null,null,null,null,"Private Sub OptionButton1_Click()"]
[null,null,null,null,null,"Dim r As Range, ob As OLEObject"]
[null,null,null,null,null,"Set r = OptionButton1.TopLeftCell"]
[null,null,null,null,null,"Set ob = OLEObjects(\"OptionButton1\")"]
[null,null,null,null,null,"If ob.Object.Value Then"]
[null,null,null,null,null,"r.Interior.Color = vbRed"]
[null,null,null,null,null,"Else"]
[null,null,null,null,null,"r.Interior.Color = vbWhite"]
[null,null,null,null,null,"End If"]
[null,null,null,null,null,"End Sub"]
[]
[null,null,null,null,null,"Private Sub OptionButton2_Click()"]
[null,null,null,null,null,"Dim r As Range, ob As OLEObject"]
[null,null,null,null,null,"Set r = OptionButton2.TopLeftCell"]
[null,null,null,null,null,"Set ob = OLEObjects(\"OptionButton2\")"]
[null,null,null,null,null,"If ob.Object.Value Then"]
[null,null,null,null,null,"r.Interior.Color = vbRed"]
[null,null,null,null,null,"Else"]
[null,null,null,null,null,"r.Interior.Color = vbWhite"]
[null,null,null,null,null,"End If"]
[null,null,null,null,null,"End Sub"]
[]
[null,null,null,null,null,"Private Sub OptionButton3_Click()"]
[null,null,null,null,null,"Dim r As Range, ob As OLEObject"]
[null,null,null,null,null,"Set r = OptionButton3.TopLeftCell"]
[null,null,null,null,null,"Set ob = OLEObjects(\"OptionButton3\")"]
[null,null,null,null,null,"If ob.Object.Value Then"]
[null,null,null,null,null,"r.Interior.Color = vbRed"]
[null,null,null,null,null,"Else"]
[null,null,null,null,null,"r.Interior.Color = vbWhite"]
[null,null,null,null,null,"End If"]
[null,null,null,null,null,"End Sub"]
[]
[null,null,null,null,null,"Private Sub OptionButton4_Click()"]
[null,null,null,null,null,"Dim r As Range, ob As OLEObject"]
[null,null,null,null,null,"Set r = OptionButton4.TopLeftCell"]
[null,null,null,null,null,"Set ob = OLEObjects(\"OptionButton4\")"]
[null,null,null,null,null,"If ob.Object.Value Then"]
[null,null,null,null,null,"r.Interior.Color = vbRed"]
[null,null,null,null,null,"Else"]
[null,null,null,null,null,"r.Interior.Color = vbWhite"]
[null,null,null,null,null,"End If"]
[null,null,null,null,null,"End Sub"]
[]
[null,null,null,null,null,"Private Sub OptionButton5_Click()"]
[null,null,null,null,null,"Dim r As Range, ob As OLEObject"]
[null,null,null,null,null,"Set r = OptionButton5.TopLeftCell"]
[null,null,null,null,null,"Set ob = OLEObjects(\"OptionButton5\")"]
[null,null,null,null,null,"If ob.Object.Value Then"]
[null,null,null,null,null,"r.Interior.Color = vbRed"]
[null,null,null,null,null,"Else"]
[null,null,null,null,null,"r.Interior.Color = vbWhite"]
[null,null,null,null,null,"End If"]
[null,null,null,null,null,"End Sub"]
[]
[null,null,null,null,null,"Private Sub OptionButton6_Click()"]
[null,null,null,null,null,"Dim r As Range, ob As OLEObject"]
[null,null,null,null,null,"Set r = OptionButton6.TopLeftCell"]
[null,null,null,null,null,"Set ob = OLEObjects(\"OptionButton6\")"]
[null,null,null,null,null,"If ob.Object.Value Then"]
[null,null,null,null,null,"r.Interior.Color = vbRed"]
[null,null,null,null,null,"Else"]
[null,null,null,null,null,"r.Interior.Color = vbWhite"]
[null,null,null,null,null,"End If"]
[null,null,null,null,null,"End Sub"]
[]
[null,null,null,null,null,"Private Sub OptionButton7_Click()"]
[null,null,null,null,null,"Dim r As Range, ob As OLEObject"]
[null,null,null,null,null,"Set r = OptionButton7.TopLeftCell"]
[null,null,null,null,null,"Set ob = OLEObjects(\"OptionButton7\")"]
[null,null,null,null,null,"If ob.Object.Value Then"]
[null,null,null,null,null,"r.Interior.Color = vbRed"]
[null,null,null,null,null,"Else"]
[null,null,null,null,null,"r.Interior.Color = vbWhite"]
[null,null,null,null,null,"End If"]
[null,null,null,null,null,"End Sub"]
[]
[null,null,null,null,null,"Private Sub OptionButton8_Click()"]
[null,null,null,null,null,"Dim r As Range, ob As OLEObject"]
[null,null,null,null,null,"Set r = OptionButton8.TopLeftCell"]
[null,null,null,null,null,"Set ob = OLEObjects(\"OptionButton8\")"]
[null,null,null,null,null,"If ob.Object.Value Then"]
[null,null,null,null,null,"r.Interior.Color = vbRed"]
[null,null,null,null,null,"Else"]
[null,null,null,null,null,"r.Interior.Color = vbWhite"]
[null,null,null,null,null,"End If"]
[null,null,null,null,null,"End Sub"]
[]
[null,null,null,null,null,"Private Sub OptionButton9_Click()"]
[null,null,null,null,null,"Dim r As Range, ob As OLEObject"]
[null,null,null,null,null,"Set r = OptionButton9.TopLeftCell"]
[null,null,null,null,null,"Set ob = OLEObjects(\"OptionButton9\")"]
[null,null,null,null,null,"If ob.Object.Value Then"]
[null,null,null,null,null,"r.Interior.Color = vbRed"]
[null,null,null,null,null,"Else"]
[null,null,null,null,null,"r.Interior.Color = vbWhite"]
[null,null,null,null,null,"End If"]
[null,null,null,null,null,"End Sub"]
[]
[null,null,null,null,null,"Private Sub OptionButton10_Click()"]
[null,null,null,null,null,"Dim r As Range, ob As OLEObject"]
[null,null,null,null,null,"Set r = OptionButton10.TopLeftCell"]
[null,null,null,null,null,"Set ob = OLEObjects(\"OptionButton10\")"]
[null,null,null,null,null,"If ob.Object.Value Then"]
[null,null,null,null,null,"r.Interior.Color = vbRed"]
[null,null,null,null,null,"Else"]
[null,null,null,null,null,"r.Interior.Color = vbWhite"]
[null,null,null,null,null,"End If"]
[null,null,null,null,null,"End Sub"]
[]
[null,null,null,null,null,"Private Sub OptionButton11_Click()"]
[null,null,null,null,null,"Dim r As Range, ob As OLEObject"]
[null,null,null,null,null,"Set r = OptionButton11.TopLeftCell"]
[null,null,null,null,null,"Set ob = OLEObjects(\"OptionButton11\")"]
[null,null,null,null,null,"If ob.Object.Value Then"]
[null,null,null,null,null,"r.Interior.Color = vbRed"]
[null,null,null,null,null,"Else"]
[null,null,null,null,null,"r.Interior.Color = vbWhite"]
[null,null,null,null,null,"End If"]
[null,null,null,null,null,"End Sub"]
[]
[null,null,null,null,null,"Private Sub OptionButton12_Click()"]
[null,null,null,null,null,"Dim r As Range, ob As OLEObject"]
[null,null,null,null,null,"Set r = OptionButton12.TopLeftCell"]
[null,null,null,null,null,"Set ob = OLEObjects(\"OptionButton12\")"]
[null,null,null,null,null,"If ob.Object.Value Then"]
[null,null,null,null,null,"r.Interior.Color = vbRed"]
[null,null,null,null,null,"Else"]
[null,null,null,null,null,"r.Interior.Color = vbWhite"]
[null,null,null,null,null,"End If"]
[null,null,null,null,null,"End Sub"]
[]
[null,null,null,null,null,"Private Sub OptionButton13_Click()"]
[null,null,null,null,null,"Dim r As Range, ob As OLEObject"]
[null,null,null,null,null,"Set r = OptionButton13.TopLeftCell"]
[null,null,null,null,null,"Set ob = OLEObjects(\"OptionButton13\")"]
[null,null,null,null,null,"If ob.Object.Value Then"]
[null,null,null,null,null,"r.Interior.Color = vbRed"]
[null,null,null,null,null,"Else"]
[null,null,null,null,null,"r.Interior.Color = vbWhite"]
[null,null,null,null,null,"End If"]
[null,null,null,null,null,"End Sub"]
[]
[null,null,null,null,null,"Private Sub OptionButton14_Click()"]
[null,null,null,null,null,"Dim r As Range, ob As OLEObject"]
[null,null,null,null,null,"Set r = OptionButton14.TopLeftCell"]
[null,null,null,null,null,"Set ob = OLEObjects(\"OptionButton14\")"]
[null,null,null,null,null,"If ob.Object.Value Then"]
[null,null,null,null,null,"r.Interior.Color = vbRed"]
[null,null,null,null,null,"Else"]
[null,null,null,null,null,"r.Interior.Color = vbWhite"]
[null,null,null,null,null,"End If"]
[null,null,null,null,null,"End Sub"]
[]
[null,null,null,null,null,"Private Sub OptionButton15_Click()"]
[null,null,null,null,null,"Dim r As Range, ob As OLEObject"]
[null,null,null,null,null,"Set r = OptionButton15.TopLeftCell"]
[null,null,null,null,null,"Set ob = OLEObjects(\"OptionButton15\")"]
[null,null,null,null,null,"If ob.Object.Value Then"]
[null,null,null,null,null,"r.Interior.Color = vbRed"]
[null,null,null,null,null,"Else"]
[null,null,null,null,null,"r.Interior.Color = vbWhite"]
[null,null,null,null,null,"End If"]
[null,null,null,null,null,"End Sub"]
[]
[null,null,null,null,null,"Private Sub OptionButton16_Click()"]
[null,null,null,null,null,"Dim r As Range, ob As OLEObject"]
[null,null,null,null,null,"Set r = OptionButton16.TopLeftCell"]
[null,null,null,null,null,"Set ob = OLEObjects(\"OptionButton16\")"]
[null,null,null,null,null,"If ob.Object.Value Then"]
[null,null,null,null,null,"r.Interior.Color = vbRed"]
[null,null,null,null,null,"Else"]
[null,null,null,null,null,"r.Interior.Color = vbWhite"]
[null,null,null,null,null,"End If"]
[null,null,null,null,null,"End Sub"]
[]
[null,null,null,null,null,"Private Sub OptionButton17_Click()"]
[null,null,null,null,null,"Dim r As Range, ob As OLEObject"]
[null,null,null,null,null,"Set r = OptionButton17.TopLeftCell"]
[null,null,null,null,null,"Set ob = OLEObjects(\"OptionButton17\")"]
[null,null,null,null,null,"If ob.Object.Value Then"]
[null,null,null,null,null,"r.Interior.Color = vbRed"]
[null,null,null,null,null,"Else"]
[null,null,null,null,null,"r.Interior.Color = vbWhite"]
[null,null,null,null,null,"End If"]
[null,null,null,null,null,"End Sub"]
[]
[null,null,null,null,null,"Private Sub OptionButton18_Click()"]
[null,null,null,null,null,"Dim r As Range, ob As OLEObject"]
[null,null,null,null,null,"Set r = OptionButton18.TopLeftCell"]
[null,null,null,null,null,"Set ob = OLEObjects(\"OptionButton18\")"]
[null,null,null,null,null,"If ob.Object.Value Then"]
[null,null,null,null,null,"r.Interior.Color = vbRed"]
[null,null,null,null,null,"Else"]
[null,null,null,null,null,"r.Interior.Color = vbWhite"]
[null,null,null,null,null,"End If"]
[null,null,null,null,null,"End Sub"]
[]
[null,null,null,null,null,"Private Sub OptionButton19_Click()"]
[null,null,null,null,null,"Dim r As Range, ob As OLEObject"]
[null,null,null,null,null,"Set r = OptionButton19.TopLeftCell"]
[null,null,null,null,null,"Set ob = OLEObjects(\"OptionButton19\")"]
[null,null,null,null,null,"If ob.Object.Value Then"]
[null,null,null,null,null,"r.Interior.Color = vbRed"]
[null,null,null,null,null,"Else"]
[null,null,null,null,null,"r.Interior.Color = vbWhite"]
[null,null,null,null,null,"End If"]
[null,null,null,null,null,"End Sub"]
[]
[null,null,null,null,null,"Private Sub OptionButton20_Click()"]
[null,null,null,null,null,"Dim r As Range, ob As OLEObject"]
[null,null,null,null,null,"Set r = OptionButton20.TopLeftCell"]
[null,null,null,null,null,"Set ob = OLEObjects(\"OptionButton20\")"]
[null,null,null,null,null,"If ob.Object.Value Then"]
[null,null,null,null,null,"r.Interior.Color = vbRed"]
[null,null,null,null,null,"Else"]
[null,null,null,null,null,"r.Interior.Color = vbWhite"]
[null,null,null,null,null,"End If"]
[null,null,null,null,null,"End Sub"]
[]
[null,null,null,null,null,"Private Sub OptionButton21_Click()"]
[null,null,null,null,null,"Dim r As Range, ob As OLEObject"]
[null,null,null,null,null,"Set r = OptionButton21.TopLeftCell"]
[null,null,null,null,null,"Set ob = OLEObjects(\"OptionButton21\")"]
[null,null,null,null,null,"If ob.Object.Value Then"]
[null,null,null,null,null,"r.Interior.Color = vbRed"]
[null,null,null,null,null,"Else"]
[null,null,null,null,null,"r.Interior.Color = vbWhite"]
[null,null,null,null,null,"End If"]
[null,null,null,null,null,"End Sub"]
[]
[null,null,null,null,null,"Private Sub OptionButton22_Click()"]
[null,null,null,null,null,"Dim r As Range, ob As OLEObject"]
[null,null,null,null,null,"Set r = OptionButton22.TopLeftCell"]
[null,null,null,null,null,"Set ob = OLEObjects(\"OptionButton22\")"]
[null,null,null,null,null,"If ob.Object.Value Then"]
[null,null,null,null,null,"r.Interior.Color = vbRed"]
[null,null,null,null,null,"Else"]
[null,null,null,null,null,"r.Interior.Color = vbWhite"]
[null,null,null,null,null,"End If"]
[null,null,null,null,null,"End Sub"]
[]
[null,null,null,null,null,"Private Sub OptionButton23_Click()"]
[null,null,null,null,null,"Dim r As Range, ob As OLEObject"]
[null,null,null,null,null,"Set r = OptionButton23.TopLeftCell"]
[null,null,null,null,null,"Set ob = OLEObjects(\"OptionButton23\")"]
[null,null,null,null,null,"If ob.Object.Value Then"]
[null,null,null,null,null,"r.Interior.Color = vbRed"]
[null,null,null,null,null,"Else"]
[null,null,null,null,null,"r.Interior.Color = vbWhite"]
[null,null,null,null,null,"End If"]
[null,null,null,null,null,"End Sub"]
[]
[null,null,null,null,null,"Private Sub OptionButton24_Click()"]
[null,null,null,null,null,"Dim r As Range, ob As OLEObject"]
[null,null,null,null,null,"Set r = OptionButton24.TopLeftCell"]
[null,null,null,null,null,"Set ob = OLEObjects(\"OptionButton24\")"]
[null,null,null,null,null,"If ob.Object.Value Then"]
[null,null,null,null,null,"r.Interior.Color = vbRed"]
[null,null,null,null,null,"Else"]
[null,null,null,null,null,"r.Interior.Color = vbWhite"]
[null,null,null,null,null,"End If"]
[null,null,null,null,null,"End Sub"]
[]
[null,null,null,null,null,"Private Sub OptionButton25_Click()"]
[null,null,null,null,null,"Dim r As Range, ob As OLEObject"]
[null,null,null,null,null,"Set r = OptionButton25.TopLeftCell"]
[null,null,null,null,null,"Set ob = OLEObjects(\"OptionButton25\")"]
[null,null,null,null,null,"If ob.Object.Value Then"]
[null,null,null,null,null,"r.Interior.Color = vbRed"]
[null,null,null,null,null,"Else"]
[null,null,null,null,null,"r.Interior.Color = vbWhite"]
[null,null,null,null,null,"End If"]
[null,null,null,null,null,"End Sub"]
[]
[null,null,null,null,null,"Private Sub OptionButton26_Click()"]
[null,null,null,null,null,"Dim r As Range, ob As OLEObject"]
[null,null,null,null,null,"Set r = OptionButton26.TopLeftCell"]
[null,null,null,null,null,"Set ob = OLEObjects(\"OptionButton26\")"]
[null,null,null,null,null,"If ob.Object.Value Then"]
[null,null,null,null,null,"r.Interior.Color = vbRed"]
[null,null,null,null,null,"Else"]
[null,null,null,null,null,"r.Interior.Color = vbWhite"]
[null,null,null,null,null,"End If"]
[null,null,null,null,null,"End Sub"]
[]
[null,null,null,null,null,"Private Sub OptionButton27_Click()"]
[null,null,null,null,null,"Dim r As Range, ob As OLEObject"]
[null,null,null,null,null,"Set r = OptionButton27.TopLeftCell"]
[null,null,null,null,null,"Set ob = OLEObjects(\"OptionButton27\")"]
[null,null,null,null,null,"If ob.Object.Value Then"]
[null,null,null,null,null,"r.Interior.Color = vbRed"]
[null,null,null,null,null,"Else"]
[null,null,null,null,null,"r.Interior.Color = vbWhite"]
[null,null,null,null,null,"End If"]
[null,null,null,null,null,"End Sub"]
[]
[null,null,null,null,null,"Private Sub OptionButton28_Click()"]
[null,null,null,null,null,"Dim r As Range, ob As OLEObject"]
[null,null,null,null,null,"Set r = OptionButton28.TopLeftCell"]
[null,null,null,null,null,"Set ob = OLEObjects(\"OptionButton28\")"]
[null,null,null,null,null,"If ob.Object.Value Then"]
[null,null,null,null,null,"r.Interior.Color = vbRed"]
[null,null,null,null,null,"Else"]
[null,null,null,null,null,"r.Interior.Color = vbWhite"]
[null,null,null,null,null,"End If"]
[null,null,null,null,null,"End Sub"]
[]
[null,null,null,null,null,"Private Sub OptionButton29_Click()"]
[null,null,null,null,null,"Dim r As Range, ob As OLEObject"]
[null,null,null,null,null,"Set r = OptionButton29.TopLeftCell"]
[null,null,null,null,null,"Set ob = OLEObjects(\"OptionButton29\")"]
[null,null,null,null,null,"If ob.Object.Value Then"]
[null,null,null,null,null,"r.Interior.Color = vbRed"]
[null,null,null,null,null,"Else"]
[null,null,null,null,null,"r.Interior.Color = vbWhite"]
[null,null,null,null,null,"End If"]
[null,null,null,null,null,"End Sub"]
[]
[null,null,null,null,null,"Private Sub OptionButton30_Click()"]
[null,null,null,null,null,"Dim r As Range, ob As OLEObject"]
[null,null,null,null,null,"Set r = OptionButton30.TopLeftCell"]
[null,null,null,null,null,"Set ob = OLEObjects(\"OptionButton30\")"]
[null,null,null,null,null,"If ob.Object.Value Then"]
[null,null,null,null,null,"r.Interior.Color = vbRed"]
[null,null,null,null,null,"Else"]
[null,null,null,null,null,"r.Interior.Color = vbWhite"]
[null,null,null,null,null,"End If"]
[null,null,null,null,null,"End Sub"]
[]
[null,null,null,null,null,"Private Sub OptionButton31_Click()"]
[null,null,null,null,null,"Dim r As Range, ob As OLEObject"]
[null,null,null,null,null,"Set r = OptionButton31.TopLeftCell"]
[null,null,null,null,null,"Set ob = OLEObjects(\"OptionButton31\")"]
[null,null,null,null,null,"If ob.Object.Value Then"]
[null,null,null,null,null,"r.Interior.Color = vbRed"]
[null,null,null,null,null,"Else"]
[null,null,null,null,null,"r.Interior.Color = vbWhite"]
[null,null,null,null,null,"End If"]
[null,null,null,null,null,"End Sub"]
[]
[null,null,null,null,null,"Private Sub OptionButton32_Click()"]
[null,null,null,null,null,"Dim r As Range, ob As OLEObject"]
[null,null,null,null,null,"Set r = OptionButton32.TopLeftCell"]
[null,null,null,null,null,"Set ob = OLEObjects(\"OptionButton32\")"]
[null,null,null,null,null,"If ob.Object.Value Then"]
[null,null,null,null,null,"r.Interior.Color = vbRed"]
[null,null,null,null,null,"Else"]
[null,null,null,null,null,"r.Interior.Color = vbWhite"]
[null,null,null,null,null,"End If"]
[null,null,null,null,null,"End Sub"]
[]
[null,null,null,null,null,"Private Sub OptionButton33_Click()"]
[null,null,null,null,null,"Dim r As Range, ob As OLEObject"]
[null,null,null,null,null,"Set r = OptionButton33.TopLeftCell"]
[null,null,null,null,null,"Set ob = OLEObjects(\"OptionButton33\")"]
[null,null,null,null,null,"If ob.Object.Value Then"]
[null,null,null,null,null,"r.Interior.Color = vbRed"]
[null,null,null,null,null,"Else"]
[null,null,null,null,null,"r.Interior.Color = vbWhite"]
[null,null,null,null,null,"End If"]
[null,null,null,null,null,"End Sub"]
[]
[null,null,null,null,null,"Private Sub OptionButton34_Click()"]
[null,null,null,null,null,"Dim r As Range, ob As OLEObject"]
[null,null,null,null,null,"Set r = OptionButton34.TopLeftCell"]
[null,null,null,null,null,"Set ob = OLEObjects(\"OptionButton34\")"]
[null,null,null,null,null,"If ob.Object.Value Then"]
[null,null,null,null,null,"r.Interior.Color = vbRed"]
[null,null,null,null,null,"Else"]
[null,null,null,null,null,"r.Interior.Color = vbWhite"]
[null,null,null,null,null,"End If"]
[null,null,null,null,null,"End Sub"]
[]
[null,null,null,null,null,"Private Sub OptionButton35_Click()"]
[null,null,null,null,null,"Dim r As Range, ob As OLEObject"]
[null,null,null,null,null,"Set r = OptionButton35.TopLeftCell"]
[null,null,null,null,null,"Set ob = OLEObjects(\"OptionButton35\")"]
[null,null,null,null,null,"If ob.Object.Value Then"]
[null,null,null,null,null,"r.Interior.Color = vbRed"]
[null,null,null,null,null,"Else"]
[null,null,null,null,null,"r.Interior.Color = vbWhite"]
[null,null,null,null,null,"End If"]
[null,null,null,null,null,"End Sub"]
[]
[null,null,null,null,null,"Private Sub OptionButton36_Click()"]
[null,null,null,null,null,"Dim r As Range, ob As OLEObject"]
[null,null,null,null,null,"Set r = OptionButton36.TopLeftCell"]
[null,null,null,null,null,"Set ob = OLEObjects(\"OptionButton36\")"]
[null,null,null,null,null,"If ob.Object.Value Then"]
[null,null,null,null,null,"r.Interior.Color = vbRed"]
[null,null,null,null,null,"Else"]
[null,null,null,null,null,"r.Interior.Color = vbWhite"]
[null,null,null,null,null,"End If"]
[null,null,null,null,null,"End Sub"]
[]
[null,null,null,null,null,"Private Sub OptionButton37_Click()"]
[null,null,null,null,null,"Dim r As Range, ob As OLEObject"]
[null,null,null,null,null,"Set r = OptionButton37.TopLeftCell"]
[null,null,null,null,null,"Set ob = OLEObjects(\"OptionButton37\")"]
[null,null,null,null,null,"If ob.Object.Value Then"]
[null,null,null,null,null,"r.Interior.Color = vbRed"]
[null,null,null,null,null,"Else"]
[null,null,null,null,null,"r.Interior.Color = vbWhite"]
[null,null,null,null,null,"End If"]
[null,null,null,null,null,"End Sub"]
[]
[null,null,null,null,null,"Private Sub OptionButton38_Click()"]
[null,null,null,null,null,"Dim r As Range, ob As OLEObject"]
[null,null,null,null,null,"Set r = OptionButton38.TopLeftCell"]
[null,null,null,null,null,"Set ob = OLEObjects(\"OptionButton38\")"]
[null,null,null,null,null,"If ob.Object.Value Then"]
[null,null,null,null,null,"r.Interior.Color = vbRed"]
[null,null,null,null,null,"Else"]
[null,null,null,null,null,"r.Interior.Color = vbWhite"]
[null,null,null,null,null,"End If"]
[null,null,null,null,null,"End Sub"]
[]
[null,null,null,null,null,"Private Sub OptionButton39_Click()"]
[null,null,null,null,null,"Dim r As Range, ob As OLEObject"]
[null,null,null,null,null,"Set r = OptionButton39.TopLeftCell"]
[null,null,null,null,null,"Set ob = OLEObjects(\"OptionButton39\")"]
[null,null,null,null,null,"If ob.Object.Value Then"]
[null,null,null,null,null,"r.Interior.Color = vbRed"]
[null,null,null,null,null,"Else"]
[null,null,null,null,null,"r.Interior.Color = vbWhite"]
[null,null,null,null,null,"End If"]
[null,null,null,null,null,"End Sub"]
[]
[null,null,null,null,null,"Private Sub OptionButton40_Click()"]
[null,null,null,null,null,"Dim r As Range, ob As OLEObject"]
[null,null,null,null,null,"Set r = OptionButton40.TopLeftCell"]
[null,null,null,null,null,"Set ob = OLEObjects(\"OptionButton40\")"]
[null,null,null,null,null,"If ob.Object.Value Then"]
[null,null,null,null,null,"r.Interior.Color = vbRed"]
[null,null,null,null,null,"Else"]
[null,null,null,null,null,"r.Interior.Color = vbWhite"]
[null,null,null,null,null,"End If"]
[null,null,null,null,null,"End Sub"]
[]
[null,null,null,null,null,"Private Sub OptionButton41_Click()"]
[null,null,null,null,null,"Dim r As Range, ob As OLEObject"]
[null,null,null,null,null,"Set r = OptionButton41.TopLeftCell"]
[null,null,null,null,null,"Set ob = OLEObjects(\"OptionButton41\")"]
[null,null,null,null,null,"If ob.Object.Value Then"]
[null,null,null,null,null,"r.Interior.Color = vbRed"]
[null,null,null,null,null,"Else"]
[null,null,null,null,null,"r.Interior.Color = vbWhite"]
[null,null,null,null,null,"End If"]
[null,null,null,null,null,"End Sub"]
[]
[null,null,null,null,null,"Private Sub OptionButton42_Click()"]
[null,null,null,null,null,"Dim r As Range, ob As OLEObject"]
[null,null,null,null,null,"Set r = OptionButton42.TopLeftCell"]
[null,null,null,null,null,"Set ob = OLEObjects(\"OptionButton42\")"]
[null,null,null,null,null,"If ob.Object.Value Then"]
[null,null,null,null,null,"r.Interior.Color = vbRed"]
[null,null,null,null,null,"Else"]
[null,null,null,null,null,"r.Interior.Color = vbWhite"]
[null,null,null,null,null,"End If"]
[null,null,null,null,null,"End Sub"]
[]
[null,null,null,null,null,"Private Sub OptionButton43_Click()"]
[null,null,null,null,null,"Dim r As Range, ob As OLEObject"]
[null,null,null,null,null,"Set r = OptionButton43.TopLeftCell"]
[null,null,null,null,null,"Set ob = OLEObjects(\"OptionButton43\")"]
[null,null,null,null,null,"If ob.Object.Value Then"]
[null,null,null,null,null,"r.Interior.Color = vbRed"]
[null,null,null,null,null,"Else"]
[null,null,null,null,null,"r.Interior.Color = vbWhite"]
[null,null,null,null,null,"End If"]
[null,null,null,null,null,"End Sub"]
[]
[null,null,null,null,null,"Private Sub OptionButton44_Click()"]
[null,null,null,null,null,"Dim r As Range, ob As OLEObject"]
[null,null,null,null,null,"Set r = OptionButton44.TopLeftCell"]
[null,null,null,null,null,"Set ob = OLEObjects(\"OptionButton44\")"]
[null,null,null,null,null,"If ob.Object.Value Then"]
[null,null,null,null,null,"r.Interior.Color = vbRed"]
[null,null,null,null,null,"Else"]
[null,null,null,null,null,"r.Interior.Color = vbWhite"]
[null,null,null,null,null,"End If"]
[null,null,null,null,null,"End Sub"]
[]
[null,null,null,null,null,"Private Sub OptionButton45_Click()"]
[null,null,null,null,null,"Dim r As Range, ob As OLEObject"]
[null,null,null,null,null,"Set r = OptionButton45.TopLeftCell"]
[null,null,null,null,null,"Set ob = OLEObjects(\"OptionButton45\")"]
[null,null,null,null,null,"If ob.Object.Value Then"]
[null,null,null,null,null,"r.Interior.Color = vbRed"]
[null,null,null,null,null,"Else"]
[null,null,null,null,null,"r.Interior.Color = vbWhite"]
[null,null,null,null,null,"End If"]
[null,null,null,null,null,"End Sub"]
[]
[null,null,null,null,null,"Private Sub OptionButton46_Click()"]
[null,null,null,null,null,"Dim r As Range, ob As OLEObject"]
[null,null,null,null,null,"Set r = OptionButton46.TopLeftCell"]
[null,null,null,null,null,"Set ob = OLEObjects(\"OptionButton46\")"]
[null,null,null,null,null,"If ob.Object.Value Then"]
[null,null,null,null,null,"r.Interior.Color = vbRed"]
[null,null,null,null,null,"Else"]
[null,null,null,null,null,"r.Interior.Color = vbWhite"]
[null,null,null,null,null,"End If"]
[null,null,null,null,null,"End Sub"]
[]
[null,null,null,null,null,"Private Sub OptionButton47_Click()"]
[null,null,null,null,null,"Dim r As Range, ob As OLEObject"]
[null,null,null,null,null,"Set r = OptionButton47.TopLeftCell"]
[null,null,null,null,null,"Set ob = OLEObjects(\"OptionButton47\")"]
[null,null,null,null,null,"If ob.Object.Value Then"]
[null,null,null,null,null,"r.Interior.Color = vbRed"]
[null,null,null,null,null,"Else"]
[null,null,null,null,null,"r.Interior.Color = vbWhite"]
[null,null,null,null,null,"End If"]
[null,null,null,null,null,"End Sub"]
[]
[null,null,null,null,null,"Private Sub OptionButton48_Click()"]
[null,null,null,null,null,"Dim r As Range, ob As OLEObject"]
[null,null,null,null,null,"Set r = OptionButton48.TopLeftCell"]
[null,null,null,null,null,"Set ob = OLEObjects(\"OptionButton48\")"]
[null,null,null,null,null,"If ob.Object.Value Then"]
[null,null,null,null,null,"r.Interior.Color = vbRed"]
[null,null,null,null,null,"Else"]
[null,null,null,null,null,"r.Interior.Color = vbWhite"]
[null,null,null,null,null,"End If"]
[null,null,null,null,null,"End Sub"]
[]
[null,null,null,null,null,"Private Sub OptionButton49_Click()"]
[null,null,null,null,null,"Dim r As Range, ob As OLEObject"]
[null,null,null,null,null,"Set r = OptionButton49.TopLeftCell"]
[null,null,null,null,null,"Set ob = OLEObjects(\"OptionButton49\")"]
[null,null,null,null,null,"If ob.Object.Value Then"]
[null,null,null,null,null,"r.Interior.Color = vbRed"]
[null,null,null,null,null,"Else"]
[null,null,null,null,null,"r.Interior.Color = vbWhite"]
[null,null,null,null,null,"End If"]
[null,null,null,null,null,"End Sub"]
[]
[null,null,null,null,null,"Private Sub OptionButton50_Click()"]
[null,null,null,null,null,"Dim r As Range, ob As OLEObject"]
[null,null,null,null,null,"Set r = OptionButton50.TopLeftCell"]
[null,null,null,null,null,"Set ob = OLEObjects(\"OptionButton50\")"]
[null,null,null,null,null,"If ob.Object.Value Then"]
[null,null,null,null,null,"r.Interior.Color = vbRed"]
[null,null,null,null,null,"Else"]
[null,null,null,null,null,"r.Interior.Color = vbWhite"]
[null,null,null,null,null,"End If"]
[null,null,null,null,null,"End Sub"]
[]
[null,null,null,null,null," Private Sub OptionButton1_Change()"]
[null,null,null,null,null,"    With OptionButton1"]
[null,null,null,null,null,"       .BackStyle = fmBackStyleOpaque"]
[null,null,null,null,null,"       .Visible = False"]
[null,null,null,null,null,"       .Visible = True"]
[null,null,null,null,null,"       .BackStyle = fmBackStyleTransparent"]
[null,null,null,null,null,"    End With"]
[null,null,null,null,null," End Sub"]
[]
[null,null,null,null,null," Private Sub OptionButton2_Change()"]
[null,null,null,null,null,"    With OptionButton2"]
[null,null,null,null,null,"       .BackStyle = fmBackStyleOpaque"]
[null,null,null,null,null,"       .Visible = False"]
[null,null,null,null,null,"       .Visible = True"]
[null,null,null,null,null,"       .BackStyle = fmBackStyleTransparent"]
[null,null,null,null,null,"    End With"]
[null,null,null,null,null," End Sub"]
[]
[null,null,null,null,null," Private Sub OptionButton3_Change()"]
[null,null,null,null,null,"    With OptionButton3"]
[null,null,null,null,null,"       .BackStyle = fmBackStyleOpaque"]
[null,null,null,null,null,"       .Visible = False"]
[null,null,null,null,null,"       .Visible = True"]
[null,null,null,null,null,"       .BackStyle = fmBackStyleTransparent"]
[null,null,null,null,null,"    End With"]
[null,null,null,null,null," End Sub"]
[]
[null,null,null,null,null," Private Sub OptionButton4_Change()"]
[null,null,null,null,null,"    With OptionButton4"]
[null,null,null,null,null,"       .BackStyle = fmBackStyleOpaque"]
[null,null,null,null,null,"       .Visible = False"]
[null,null,null,null,null,"       .Visible = True"]
[null,null,null,null,null,"       .BackStyle = fmBackStyleTransparent"]
[null,null,null,null,null,"    End With"]
[null,null,null,null,null," End Sub"]
[]
[null,null,null,null,null," Private Sub OptionButton5_Change()"]
[null,null,null,null,null,"    With OptionButton5"]
[null,null,null,null,null,"       .BackStyle = fmBackStyleOpaque"]
[null,null,null,null,null,"       .Visible = False"]
[null,null,null,null,null,"       .Visible = True"]
[null,null,null,null,null,"       .BackStyle = fmBackStyleTransparent"]
[null,null,null,null,null,"    End With"]
[null,null,null,null,null," End Sub"]
[]
[null,null,null,null,null," Private Sub OptionButton6_Change()"]
[null,null,null,null,null,"    With OptionButton6"]
[null,null,null,null,null,"       .BackStyle = fmBackStyleOpaque"]
[null,null,null,null,null,"       .Visible = False"]
[null,null,null,null,null,"       .Visible = True"]
[null,null,null,null,null,"       .BackStyle = fmBackStyleTransparent"]
[null,null,null,null,null,"    End With"]
[null,null,null,null,null," End Sub"]
[]
[null,null,null,null,null," Private Sub OptionButton7_Change()"]
[null,null,null,null,null,"    With OptionButton7"]
[null,null,null,null,null,"       .BackStyle = fmBackStyleOpaque"]
[null,null,null,null,null,"       .Visible = False"]
[null,null,null,null,null,"       .Visible = True"]
[null,null,null,null,null,"       .BackStyle = fmBackStyleTransparent"]
[null,null,null,null,null,"    End With"]
[null,null,null,null,null," End Sub"]
[]
[null,null,null,null,null," Private Sub OptionButton8_Change()"]
[null,null,null,null,null,"    With OptionButton8"]
[null,null,null,null,null,"       .BackStyle = fmBackStyleOpaque"]
[null,null,null,null,null,"       .Visible = False"]
[null,null,null,null,null,"       .Visible = True"]
[null,null,null,null,null,"       .BackStyle = fmBackStyleTransparent"]
[null,null,null,null,null,"    End With"]
[null,null,null,null,null," End Sub"]
[]
[null,null,null,null,null," Private Sub OptionButton21_Change()"]
[null,null,null,null,null,"    With OptionButton21"]
[null,null,null,null,null,"       .BackStyle = fmBackStyleOpaque"]
[null,null,null,null,null,"       .Visible = False"]
[null,null,null,null,null,"       .Visible = True"]
[null,null,null,null,null,"       .BackStyle = fmBackStyleTransparent"]
[null,null,null,null,null,"    End With"]
[null,null,null,null,null," End Sub"]
[]
[null,null,null,null,null," Private Sub OptionButton22_Change()"]
[null,null,null,null,null,"    With OptionButton22"]
[null,null,null,null,null,"       .BackStyle = fmBackStyleOpaque"]
[null,null,null,null,null,"       .Visible = False"]
[null,null,null,null,null,"       .Visible = True"]
[null,null,null,null,null,"       .BackStyle = fmBackStyleTransparent"]
[null,null,null,null,null,"    End With"]
[null,null,null,null,null," End Sub"]
[]
[null,null,null,null,null," Private Sub OptionButton23_Change()"]
[null,null,null,null,null,"    With OptionButton23"]
[null,null,null,null,null,"       .BackStyle = fmBackStyleOpaque"]
[null,null,null,null,null,"       .Visible = False"]
[null,null,null,null,null,"       .Visible = True"]
[null,null,null,null,null,"       .BackStyle = fmBackStyleTransparent"]
[null,null,null,null,null,"    End With"]
[null,null,null,null,null," End Sub"]
[]
[null,null,null,null,null," Private Sub OptionButton24_Change()"]
[null,null,null,null,null,"    With OptionButton24"]
[null,null,null,null,null,"       .BackStyle = fmBackStyleOpaque"]
[null,null,null,null,null,"       .Visible = False"]
[null,null,null,null,null,"       .Visible = True"]
[null,null,null,null,null,"       .BackStyle = fmBackStyleTransparent"]
[null,null,null,null,null,"    End With"]
[null,null,null,null,null," End Sub"]
[]
[null,null,null,null,null," Private Sub OptionButton37_Change()"]
[null,null,null,null,null,"    With OptionButton37"]
[null,null,null,null,null,"       .BackStyle = fmBackStyleOpaque"]
[null,null,null,null,null,"       .Visible = False"]
[null,null,null,null,null,"       .Visible = True"]
[null,null,null,null,null,"       .BackStyle = fmBackStyleTransparent"]
[null,null,null,null,null,"    End With"]
[null,null,null,null,null," End Sub"]
[]
[null,null,null,null,null," Private Sub OptionButton38_Change()"]
[null,null,null,null,null,"    With OptionButton38"]
[null,null,null,null,null,"       .BackStyle = fmBackStyleOpaque"]
[null,null,null,null,null,"       .Visible = False"]
[null,null,null,null,null,"       .Visible = True"]
[null,null,null,null,null,"       .BackStyle = fmBackStyleTransparent"]
[null,null,null,null,null,"    End With"]
[null,null,null,null,null," End Sub"]
[]
[null,null,null,null,null," Private Sub OptionButton39_Change()"]
[null,null,null,null,null,"    With OptionButton39"]
[null,null,null,null,null,"       .BackStyle = fmBackStyleOpaque"]
[null,null,null,null,null,"       .Visible = False"]
[null,null,null,null,null,"       .Visible = True"]
[null,null,null,null,null,"       .BackStyle = fmBackStyleTransparent"]
[null,null,null,null,null,"    End With"]
[null,null,null,null,null," End Sub"]
[]
[null,null,null,null,null," Private Sub OptionButton40_Change()"]
[null,null,null,null,null,"    With OptionButton40"]
[null,null,null,null,null,"       .BackStyle = fmBackStyleOpaque"]
[null,null,null,null,null,"       .Visible = False"]
[null,null,null,null,null,"       .Visible = True"]
[null,null,null,null,null,"       .BackStyle = fmBackStyleTransparent"]
[null,null,null,null,null,"    End With"]
[null,null,null,null,null," End Sub"]
[]
[null,null,null,null,null," Private Sub OptionButton9_Change()"]
[null,null,null,null,null,"    With OptionButton9"]
[null,null,null,null,null,"       .BackStyle = fmBackStyleOpaque"]
[null,null,null,null,null,"       .Visible = False"]
[null,null,null,null,null,"       .Visible = True"]
[null,null,null,null,null,"       .BackStyle = fmBackStyleTransparent"]
[null,null,null,null,null,"    End With"]
[null,null,null,null,null," End Sub"]
[]
[null,null,null,null,null," Private Sub OptionButton10_Change()"]
[null,null,null,null,null,"    With OptionButton10"]
[null,null,null,null,null,"       .BackStyle = fmBackStyleOpaque"]
[null,null,null,null,null,"       .Visible = False"]
[null,null,null,null,null,"       .Visible = True"]
[null,null,null,null,null,"       .BackStyle = fmBackStyleTransparent"]
[null,null,null,null,null,"    End With"]
[null,null,null,null,null," End Sub"]
[]
[null,null,null,null,null," Private Sub OptionButton11_Change()"]
[null,null,null,null,null,"    With OptionButton11"]
[null,null,null,null,null,"       .BackStyle = fmBackStyleOpaque"]
[null,null,null,null,null,"       .Visible = False"]
[null,null,null,null,null,"       .Visible = True"]
[null,null,null,null,null,"       .BackStyle = fmBackStyleTransparent"]
[null,null,null,null,null,"    End With"]
[null,null,null,null,null," End Sub"]
[]
[null,null,null,null,null," Private Sub OptionButton12_Change()"]
[null,null,null,null,null,"    With OptionButton12"]
[null,null,null,null,null,"       .BackStyle = fmBackStyleOpaque"]
[null,null,null,null,null,"       .Visible = False"]
[null,null,null,null,null,"       .Visible = True"]
[null,null,null,null,null,"       .BackStyle = fmBackStyleTransparent"]
[null,null,null,null,null,"    End With"]
[null,null,null,null,null," End Sub"]
[]
[null,null,null,null,null," Private Sub OptionButton13_Change()"]
[null,null,null,null,null,"    With OptionButton13"]
[null,null,null,null,null,"       .BackStyle = fmBackStyleOpaque"]
[null,null,null,null,null,"       .Visible = False"]
[null,null,null,null,null,"       .Visible = True"]
[null,null,null,null,null,"       .BackStyle = fmBackStyleTransparent"]
[null,null,null,null,null,"    End With"]
[null,null,null,null,null," End Sub"]
[]
[null,null,null,null,null," Private Sub OptionButton14_Change()"]
[null,null,null,null,null,"    With OptionButton14"]
[null,null,null,null,null,"       .BackStyle = fmBackStyleOpaque"]
[null,null,null,null,null,"       .Visible = False"]
[null,null,null,null,null,"       .Visible = True"]
[null,null,null,null,null,"       .BackStyle = fmBackStyleTransparent"]
[null,null,null,null,null,"    End With"]
[null,null,null,null,null," End Sub"]
[]
[null,null,null,null,null," Private Sub OptionButton15_Change()"]
[null,null,null,null,null,"    With OptionButton15"]
[null,null,null,null,null,"       .BackStyle = fmBackStyleOpaque"]
[null,null,null,null,null,"       .Visible = False"]
[null,null,null,null,null,"       .Visible = True"]
[null,null,null,null,null,"       .BackStyle = fmBackStyleTransparent"]
[null,null,null,null,null,"    End With"]
[null,null,null,null,null," End Sub"]
[]
[null,null,null,null,null," Private Sub OptionButton16_Change()"]
[null,null,null,null,null,"    With OptionButton16"]
[null,null,null,null,null,"       .BackStyle = fmBackStyleOpaque"]
[null,null,null,null,null,"       .Visible = False"]
[null,null,null,null,null,"       .Visible = True"]
[null,null,null,null,null,"       .BackStyle = fmBackStyleTransparent"]
[null,null,null,null,null,"    End With"]
[null,null,null,null,null," End Sub"]
[]
[null,null,null,null,null," Private Sub OptionButton25_Change()"]
[null,null,null,null,null,"    With OptionButton25"]
[null,null,null,null,null,"       .BackStyle = fmBackStyleOpaque"]
[null,null,null,null,null,"       .Visible = False"]
[null,null,null,null,null,"       .Visible = True"]
[null,null,null,null,null,"       .BackStyle = fmBackStyleTransparent"]
[null,null,null,null,null,"    End With"]
[null,null,null,null,null," End Sub"]
[]
[null,null,null,null,null," Private Sub OptionButton26_Change()"]
[null,null,null,null,null,"    With OptionButton26"]
[null,null,null,null,null,"       .BackStyle = fmBackStyleOpaque"]
[null,null,null,null,null,"       .Visible = False"]
[null,null,null,null,null,"       .Visible = True"]
[null,null,null,null,null,"       .BackStyle = fmBackStyleTransparent"]
[null,null,null,null,null,"    End With"]
[null,null,null,null,null," End Sub"]
[]
[null,null,null,null,null," Private Sub OptionButton27_Change()"]
[null,null,null,null,null,"    With OptionButton27"]
[null,null,null,null,null,"       .BackStyle = fmBackStyleOpaque"]
[null,null,null,null,null,"       .Visible = False"]
[null,null,null,null,null,"       .Visible = True"]
[null,null,null,null,null,"       .BackStyle = fmBackStyleTransparent"]
[null,null,null,null,null,"    End With"]
[null,null,null,null,null," End Sub"]
[]
[null,null,null,null,null," Private Sub OptionButton28_Change()"]
[null,null,null,null,null,"    With OptionButton28"]
[null,null,null,null,null,"       .BackStyle = fmBackStyleOpaque"]
[null,null,null,null,null,"       .Visible = False"]
[null,null,null,null,null,"       .Visible = True"]
[null,null,null,null,null,"       .BackStyle = fmBackStyleTransparent"]
[null,null,null,null,null,"    End With"]
[null,null,null,null,null," End Sub"]
[]
[null,null,null,null,null," Private Sub OptionButton41_Change()"]
[null,null,null,null,null,"    With OptionButton41"]
[null,null,null,null,null,"       .BackStyle = fmBackStyleOpaque"]
[null,null,null,null,null,"       .Visible = False"]
[null,null,null,null,null,"       .Visible = True"]
[null,null,null,null,null,"       .BackStyle = fmBackStyleTransparent"]
[null,null,null,null,null,"    End With"]
[null,null,null,null,null," End Sub"]
[]
[null,null,null,null,null," Private Sub OptionButton42_Change()"]
[null,null,null,null,null,"    With OptionButton42"]
[null,null,null,null,null,"       .BackStyle = fmBackStyleOpaque"]
[null,null,null,null,null,"       .Visible = False"]
[null,null,null,null,null,"       .Visible = True"]
[null,null,null,null,null,"       .BackStyle = fmBackStyleTransparent"]
[null,null,null,null,null,"    End With"]
[null,null,null,null,null," End Sub"]
[]
[null,null,null,null,null," Private Sub OptionButton43_Change()"]
[null,null,null,null,null,"    With OptionButton43"]
[null,null,null,null,null,"       .BackStyle = fmBackStyleOpaque"]
[null,null,null,null,null,"       .Visible = False"]
[null,null,null,null,null,"       .Visible = True"]
[null,null,null,null,null,"       .BackStyle = fmBackStyleTransparent"]
[null,null,null,null,null,"    End With"]
[null,null,null,null,null," End Sub"]
[]
[null,null,null,null,null," Private Sub OptionButton44_Change()"]
[null,null,null,null,null,"    With OptionButton44"]
[null,null,null,null,null,"       .BackStyle = fmBackStyleOpaque"]
[null,null,null,null,null,"       .Visible = False"]
[null,null,null,null,null,"       .Visible = True"]
[null,null,null,null,null,"       .BackStyle = fmBackStyleTransparent"]
[null,null,null,null,null,"    End With"]
[null,null,null,null,null," End Sub"]
[]
[null,null,null,null,null," Private Sub OptionButton17_Change()"]
[null,null,null,null,null,"    With OptionButton17"]
[null,null,null,null,null,"       .BackStyle = fmBackStyleOpaque"]
[null,null,null,null,null,"       .Visible = False"]
[null,null,null,null,null,"       .Visible = True"]
[null,null,null,null,null,"       .BackStyle = fmBackStyleTransparent"]
[null,null,null,null,null,"    End With"]
[null,null,null,null,null," End Sub"]
[]
[null,null,null,null,null," Private Sub OptionButton18_Change()"]
[null,null,null,null,null,"    With OptionButton18"]
[null,null,null,null,null,"       .BackStyle = fmBackStyleOpaque"]
[null,null,null,null,null,"       .Visible = False"]
[null,null,null,null,null,"       .Visible = True"]
[null,null,null,null,null,"       .BackStyle = fmBackStyleTransparent"]
[null,null,null,null,null,"    End With"]
[null,null,null,null,null," End Sub"]
[]
[null,null,null,null,null," Private Sub OptionButton19_Change()"]
[null,null,null,null,null,"    With OptionButton19"]
[null,null,null,null,null,"       .BackStyle = fmBackStyleOpaque"]
[null,null,null,null,null,"       .Visible = False"]
[null,null,null,null,null,"       .Visible = True"]
[null,null,null,null,null,"       .BackStyle = fmBackStyleTransparent"]
[null,null,null,null,null,"    End With"]
[null,null,null,null,null," End Sub"]
[]
[null,null,null,null,null," Private Sub OptionButton20_Change()"]
[null,null,null,null,null,"    With OptionButton20"]
[null,null,null,null,null,"       .BackStyle = fmBackStyleOpaque"]
[null,null,null,null,null,"       .Visible = False"]
[null,null,null,null,null,"       .Visible = True"]
[null,null,null,null,null,"       .BackStyle = fmBackStyleTransparent"]
[null,null,null,null,null,"    End With"]
[null,null,null,null,null," End Sub"]
[]
[null,null,null,null,null," Private Sub OptionButton33_Change()"]
[null,null,null,null,null,"    With OptionButton33"]
[null,null,null,null,null,"       .BackStyle = fmBackStyleOpaque"]
[null,null,null,null,null,"       .Visible = False"]
[null,null,null,null,null,"       .Visible = True"]
[null,null,null,null,null,"       .BackStyle = fmBackStyleTransparent"]
[null,null,null,null,null,"    End With"]
[null,null,null,null,null," End Sub"]
[]
[null,null,null,null,null," Private Sub OptionButton34_Change()"]
[null,null,null,null,null,"    With OptionButton34"]
[null,null,null,null,null,"       .BackStyle = fmBackStyleOpaque"]
[null,null,null,null,null,"       .Visible = False"]
[null,null,null,null,null,"       .Visible = True"]
[null,null,null,null,null,"       .BackStyle = fmBackStyleTransparent"]
[null,null,null,null,null,"    End With"]
[null,null,null,null,null," End Sub"]
[]
[null,null,null,null,null," Private Sub OptionButton35_Change()"]
[null,null,null,null,null,"    With OptionButton35"]
[null,null,null,null,null,"       .BackStyle = fmBackStyleOpaque"]
[null,null,null,null,null,"       .Visible = False"]
[null,null,null,null,null,"       .Visible = True"]
[null,null,null,null,null,"       .BackStyle = fmBackStyleTransparent"]
[null,null,null,null,null,"    End With"]
[null,null,null,null,null," End Sub"]
[]
[null,null,null,null,null," Private Sub OptionButton36_Change()"]
[null,null,null,null,null,"    With OptionButton36"]
[null,null,null,null,null,"       .BackStyle = fmBackStyleOpaque"]
[null,null,null,null,null,"       .Visible = False"]
[null,null,null,null,null,"       .Visible = True"]
[null,null,null,null,null,"       .BackStyle = fmBackStyleTransparent"]
[null,null,null,null,null,"    End With"]
[null,null,null,null,null," End Sub"]
[]
[null,null,null,null,null," Private Sub OptionButton29_Change()"]
[null,null,null,null,null,"    With OptionButton29"]
[null,null,null,null,null,"       .BackStyle = fmBackStyleOpaque"]
[null,null,null,null,null,"       .Visible = False"]
[null,null,null,null,null,"       .Visible = True"]
[null,null,null,null,null,"       .BackStyle = fmBackStyleTransparent"]
[null,null,null,null,null,"    End With"]
[null,null,null,null,null," End Sub"]
[]
[null,null,null,null,null," Private Sub OptionButton30_Change()"]
[null,null,null,null,null,"    With OptionButton30"]
[null,null,null,null,null,"       .BackStyle = fmBackStyleOpaque"]
[null,null,null,null,null,"       .Visible = False"]
[null,null,null,null,null,"       .Visible = True"]
[null,null,null,null,null,"       .BackStyle = fmBackStyleTransparent"]
[null,null,null,null,null,"    End With"]
[null,null,null,null,null," End Sub"]
[]
[null,null,null,null,null," Private Sub OptionButton31_Change()"]
[null,null,null,null,null,"    With OptionButton31"]
[null,null,null,null,null,"       .BackStyle = fmBackStyleOpaque"]
[null,null,null,null,null,"       .Visible = False"]
[null,null,null,null,null,"       .Visible = True"]
[null,null,null,null,null,"       .BackStyle = fmBackStyleTransparent"]
[null,null,null,null,null,"    End With"]
[null,null,null,null,null," End Sub"]
[]
[null,null,null,null,null," Private Sub OptionButton32_Change()"]
[null,null,null,null,null,"    With OptionButton32"]
[null,null,null,null,null,"       .BackStyle = fmBackStyleOpaque"]
[null,null,null,null,null,"       .Visible = False"]
[null,null,null,null,null,"       .Visible = True"]
[null,null,null,null,null,"       .BackStyle = fmBackStyleTransparent"]
[null,null,null,null,null,"    End With"]
[null,null,null,null,null," End Sub"]
[]
[null,null,null,null,null," Private Sub OptionButton45_Change()"]
[null,null,null,null,null,"    With OptionButton45"]
[null,null,null,null,null,"       .BackStyle = fmBackStyleOpaque"]
[null,null,null,null,null,"       .Visible = False"]
[null,null,null,null,null,"       .Visible = True"]
[null,null,null,null,null,"       .BackStyle = fmBackStyleTransparent"]
[null,null,null,null,null,"    End With"]
[null,null,null,null,null," End Sub"]
[]
[null,null,null,null,null," Private Sub OptionButton46_Change()"]
[null,null,null,null,null,"    With OptionButton46"]
[null,null,null,null,null,"       .BackStyle = fmBackStyleOpaque"]
[null,null,null,null,null,"       .Visible = False"]
[null,null,null,null,null,"       .Visible = True"]
[null,null,null,null,null,"       .BackStyle = fmBackStyleTransparent"]
[null,null,null,null,null,"    End With"]
[null,null,null,null,null," End Sub"]
[]
[null,null,null,null,null," Private Sub OptionButton47_Change()"]
[null,null,null,null,null,"    With OptionButton47"]
[null,null,null,null,null,"       .BackStyle = fmBackStyleOpaque"]
[null,null,null,null,null,"       .Visible = False"]
[null,null,null,null,null,"       .Visible = True"]
[null,null,null,null,null,"       .BackStyle = fmBackStyleTransparent"]
[null,null,null,null,null,"    End With"]
[null,null,null,null,null," End Sub"]
[]
[null,null,null,null,null," Private Sub OptionButton48_Change()"]
[null,null,null,null,null,"    With OptionButton48"]
[null,null,null,null,null,"       .BackStyle = fmBackStyleOpaque"]
[null,null,null,null,null,"       .Visible = False"]
[null,null,null,null,null,"       .Visible = True"]
[null,null,null,null,null,"       .BackStyle = fmBackStyleTransparent"]
[null,null,null,null,null,"    End With"]
[null,null,null,null,null," End Sub"]
[]
[null,null,null,null,null," Private Sub OptionButton49_Change()"]
[null,null,null,null,null,"    With OptionButton49"]
[null,null,null,null,null,"       .BackStyle = fmBackStyleOpaque"]
[null,null,null,null,null,"       .Visible = False"]
[null,null,null,null,null,"       .Visible = True"]
[null,null,null,null,null,"       .BackStyle = fmBackStyleTransparent"]
[null,null,null,null,null,"    End With"]
[null,null,null,null,null," End Sub"]
[]
[null,null,null,null,null," Private Sub OptionButton50_Change()"]
[null,null,null,null,null,"    With OptionButton50"]
[null,null,null,null,null,"       .BackStyle = fmBackStyleOpaque"]
[null,null,null,null,null,"       .Visible = False"]
[null,null,null,null,null,"       .Visible = True"]
[null,null,null,null,null,"       .BackStyle = fmBackStyleTransparent"]
[null,null,null,null,null,"    End With"]
[null,null,null,null,null," End Sub"]